Workbook

Sheet 1. Title-Intro
B1: When this spreadsheet is first opened a ‘Security Warning’ may be displayed below the menu bar. Select ‘Enable this content’
B4: Equity Trade-Off Practical
B20: Now turn to sheet 2 to calculate the total health impact
B102: Threshold Analysis: Standard Vaccine EDE
C104: Threshold
B105: =#REF! ->  | C105: 25 | D105: 50 | E105: 75 | F105: 100 | G105: 125 | H105: 150 | I105: 175 | J105: 200 | K105: 225 | L105: 250 | M105: 275 | N105: 300 | O105: 325 | P105: 350 | Q105: 375 | R105: 400 | S105: 619.14 | T105: 1857.42
B106: 0
B107: 2
B108: 4
B109: 6
B110: 8
B111: 10
B112: 12
B113: 14
B114: 16
B115: 18
B116: 20
B117: 22
B118: 24
B119: 26
B120: 28
B121: 30
B122: 32
B123: 34
B124: 36
B125: 38
B126: 40
B130: Threshold Analysis: Equitable Vaccine EDE
C132: Threshold
B133: =#REF! ->  | C133: 25 | D133: 50 | E133: 75 | F133: 100 | G133: 125 | H133: 150 | I133: 175 | J133: 200 | K133: 225 | L133: 250 | M133: 275 | N133: 300 | O133: 325 | P133: 350 | Q133: 375 | R133: 400 | S133: 619.14 | T133: 1857.42
B134: 0
B135: 2
B136: 4
B137: 6
B138: 8
B139: 10
B140: 12
B141: 14
B142: 16
B143: 18
B144: 20
B145: 22
B146: 24
B147: 26
B148: 28
B149: 30
B150: 32
B151: 34
B152: 36
B153: 38
B154: 40
B158: Threshold Analysis: Standard Vaccine EDE- Equitable vaccine EDE
C160: Threshold
C161: 25 | D161: 50 | E161: 75 | F161: 100 | G161: 125 | H161: 150 | I161: 175 | J161: 200 | K161: 225 | L161: 250 | M161: 275 | N161: 300 | O161: 325 | P161: 350 | Q161: 375 | R161: 400 | S161: 619.14 | T161: 1857.42
B162: 0 | C162: =(C106-C134)*#REF! ->  | D162: =(D106-D134)*#REF! ->  | E162: =(E106-E134)*#REF! ->  | F162: =(F106-F134)*#REF! ->  | G162: =(G106-G134)*#REF! ->  | H162: =(H106-H134)*#REF! ->  | I162: =(I106-I134)*#REF! ->  | J162: =(J106-J134)*#REF! ->  | K162: =(K106-K134)*#REF! ->  | L162: =(L106-L134)*#REF! ->  | M162: =(M106-M134)*#REF! ->  | N162: =(N106-N134)*#REF! ->  | O162: =(O106-O134)*#REF! ->  | P162: =(P106-P134)*#REF! ->  | Q162: =(Q106-Q134)*#REF! ->  | R162: =(R106-R134)*#REF! ->  | S162: =(S106-S134)*#REF! ->  | T162: =(T106-T134)*#REF! -> 
B163: 2 | C163: =(C107-C135)*#REF! ->  | D163: =(D107-D135)*#REF! ->  | E163: =(E107-E135)*#REF! ->  | F163: =(F107-F135)*#REF! ->  | G163: =(G107-G135)*#REF! ->  | H163: =(H107-H135)*#REF! ->  | I163: =(I107-I135)*#REF! ->  | J163: =(J107-J135)*#REF! ->  | K163: =(K107-K135)*#REF! ->  | L163: =(L107-L135)*#REF! ->  | M163: =(M107-M135)*#REF! ->  | N163: =(N107-N135)*#REF! ->  | O163: =(O107-O135)*#REF! ->  | P163: =(P107-P135)*#REF! ->  | Q163: =(Q107-Q135)*#REF! ->  | R163: =(R107-R135)*#REF! ->  | S163: =(S107-S135)*#REF! ->  | T163: =(T107-T135)*#REF! -> 
B164: 4 | C164: =(C108-C136)*#REF! ->  | D164: =(D108-D136)*#REF! ->  | E164: =(E108-E136)*#REF! ->  | F164: =(F108-F136)*#REF! ->  | G164: =(G108-G136)*#REF! ->  | H164: =(H108-H136)*#REF! ->  | I164: =(I108-I136)*#REF! ->  | J164: =(J108-J136)*#REF! ->  | K164: =(K108-K136)*#REF! ->  | L164: =(L108-L136)*#REF! ->  | M164: =(M108-M136)*#REF! ->  | N164: =(N108-N136)*#REF! ->  | O164: =(O108-O136)*#REF! ->  | P164: =(P108-P136)*#REF! ->  | Q164: =(Q108-Q136)*#REF! ->  | R164: =(R108-R136)*#REF! ->  | S164: =(S108-S136)*#REF! ->  | T164: =(T108-T136)*#REF! -> 
B165: 6 | C165: =(C109-C137)*#REF! ->  | D165: =(D109-D137)*#REF! ->  | E165: =(E109-E137)*#REF! ->  | F165: =(F109-F137)*#REF! ->  | G165: =(G109-G137)*#REF! ->  | H165: =(H109-H137)*#REF! ->  | I165: =(I109-I137)*#REF! ->  | J165: =(J109-J137)*#REF! ->  | K165: =(K109-K137)*#REF! ->  | L165: =(L109-L137)*#REF! ->  | M165: =(M109-M137)*#REF! ->  | N165: =(N109-N137)*#REF! ->  | O165: =(O109-O137)*#REF! ->  | P165: =(P109-P137)*#REF! ->  | Q165: =(Q109-Q137)*#REF! ->  | R165: =(R109-R137)*#REF! ->  | S165: =(S109-S137)*#REF! ->  | T165: =(T109-T137)*#REF! -> 
B166: 8 | C166: =(C110-C138)*#REF! ->  | D166: =(D110-D138)*#REF! ->  | E166: =(E110-E138)*#REF! ->  | F166: =(F110-F138)*#REF! ->  | G166: =(G110-G138)*#REF! ->  | H166: =(H110-H138)*#REF! ->  | I166: =(I110-I138)*#REF! ->  | J166: =(J110-J138)*#REF! ->  | K166: =(K110-K138)*#REF! ->  | L166: =(L110-L138)*#REF! ->  | M166: =(M110-M138)*#REF! ->  | N166: =(N110-N138)*#REF! ->  | O166: =(O110-O138)*#REF! ->  | P166: =(P110-P138)*#REF! ->  | Q166: =(Q110-Q138)*#REF! ->  | R166: =(R110-R138)*#REF! ->  | S166: =(S110-S138)*#REF! ->  | T166: =(T110-T138)*#REF! -> 
B167: 10 | C167: =(C111-C139)*#REF! ->  | D167: =(D111-D139)*#REF! ->  | E167: =(E111-E139)*#REF! ->  | F167: =(F111-F139)*#REF! ->  | G167: =(G111-G139)*#REF! ->  | H167: =(H111-H139)*#REF! ->  | I167: =(I111-I139)*#REF! ->  | J167: =(J111-J139)*#REF! ->  | K167: =(K111-K139)*#REF! ->  | L167: =(L111-L139)*#REF! ->  | M167: =(M111-M139)*#REF! ->  | N167: =(N111-N139)*#REF! ->  | O167: =(O111-O139)*#REF! ->  | P167: =(P111-P139)*#REF! ->  | Q167: =(Q111-Q139)*#REF! ->  | R167: =(R111-R139)*#REF! ->  | S167: =(S111-S139)*#REF! ->  | T167: =(T111-T139)*#REF! -> 
B168: 12 | C168: =(C112-C140)*#REF! ->  | D168: =(D112-D140)*#REF! ->  | E168: =(E112-E140)*#REF! ->  | F168: =(F112-F140)*#REF! ->  | G168: =(G112-G140)*#REF! ->  | H168: =(H112-H140)*#REF! ->  | I168: =(I112-I140)*#REF! ->  | J168: =(J112-J140)*#REF! ->  | K168: =(K112-K140)*#REF! ->  | L168: =(L112-L140)*#REF! ->  | M168: =(M112-M140)*#REF! ->  | N168: =(N112-N140)*#REF! ->  | O168: =(O112-O140)*#REF! ->  | P168: =(P112-P140)*#REF! ->  | Q168: =(Q112-Q140)*#REF! ->  | R168: =(R112-R140)*#REF! ->  | S168: =(S112-S140)*#REF! ->  | T168: =(T112-T140)*#REF! -> 
B169: 14 | C169: =(C113-C141)*#REF! ->  | D169: =(D113-D141)*#REF! ->  | E169: =(E113-E141)*#REF! ->  | F169: =(F113-F141)*#REF! ->  | G169: =(G113-G141)*#REF! ->  | H169: =(H113-H141)*#REF! ->  | I169: =(I113-I141)*#REF! ->  | J169: =(J113-J141)*#REF! ->  | K169: =(K113-K141)*#REF! ->  | L169: =(L113-L141)*#REF! ->  | M169: =(M113-M141)*#REF! ->  | N169: =(N113-N141)*#REF! ->  | O169: =(O113-O141)*#REF! ->  | P169: =(P113-P141)*#REF! ->  | Q169: =(Q113-Q141)*#REF! ->  | R169: =(R113-R141)*#REF! ->  | S169: =(S113-S141)*#REF! ->  | T169: =(T113-T141)*#REF! -> 
B170: 16 | C170: =(C114-C142)*#REF! ->  | D170: =(D114-D142)*#REF! ->  | E170: =(E114-E142)*#REF! ->  | F170: =(F114-F142)*#REF! ->  | G170: =(G114-G142)*#REF! ->  | H170: =(H114-H142)*#REF! ->  | I170: =(I114-I142)*#REF! ->  | J170: =(J114-J142)*#REF! ->  | K170: =(K114-K142)*#REF! ->  | L170: =(L114-L142)*#REF! ->  | M170: =(M114-M142)*#REF! ->  | N170: =(N114-N142)*#REF! ->  | O170: =(O114-O142)*#REF! ->  | P170: =(P114-P142)*#REF! ->  | Q170: =(Q114-Q142)*#REF! ->  | R170: =(R114-R142)*#REF! ->  | S170: =(S114-S142)*#REF! ->  | T170: =(T114-T142)*#REF! -> 
B171: 18 | C171: =(C115-C143)*#REF! ->  | D171: =(D115-D143)*#REF! ->  | E171: =(E115-E143)*#REF! ->  | F171: =(F115-F143)*#REF! ->  | G171: =(G115-G143)*#REF! ->  | H171: =(H115-H143)*#REF! ->  | I171: =(I115-I143)*#REF! ->  | J171: =(J115-J143)*#REF! ->  | K171: =(K115-K143)*#REF! ->  | L171: =(L115-L143)*#REF! ->  | M171: =(M115-M143)*#REF! ->  | N171: =(N115-N143)*#REF! ->  | O171: =(O115-O143)*#REF! ->  | P171: =(P115-P143)*#REF! ->  | Q171: =(Q115-Q143)*#REF! ->  | R171: =(R115-R143)*#REF! ->  | S171: =(S115-S143)*#REF! ->  | T171: =(T115-T143)*#REF! -> 
B172: 20 | C172: =(C116-C144)*#REF! ->  | D172: =(D116-D144)*#REF! ->  | E172: =(E116-E144)*#REF! ->  | F172: =(F116-F144)*#REF! ->  | G172: =(G116-G144)*#REF! ->  | H172: =(H116-H144)*#REF! ->  | I172: =(I116-I144)*#REF! ->  | J172: =(J116-J144)*#REF! ->  | K172: =(K116-K144)*#REF! ->  | L172: =(L116-L144)*#REF! ->  | M172: =(M116-M144)*#REF! ->  | N172: =(N116-N144)*#REF! ->  | O172: =(O116-O144)*#REF! ->  | P172: =(P116-P144)*#REF! ->  | Q172: =(Q116-Q144)*#REF! ->  | R172: =(R116-R144)*#REF! ->  | S172: =(S116-S144)*#REF! ->  | T172: =(T116-T144)*#REF! -> 
B173: 22 | C173: =(C117-C145)*#REF! ->  | D173: =(D117-D145)*#REF! ->  | E173: =(E117-E145)*#REF! ->  | F173: =(F117-F145)*#REF! ->  | G173: =(G117-G145)*#REF! ->  | H173: =(H117-H145)*#REF! ->  | I173: =(I117-I145)*#REF! ->  | J173: =(J117-J145)*#REF! ->  | K173: =(K117-K145)*#REF! ->  | L173: =(L117-L145)*#REF! ->  | M173: =(M117-M145)*#REF! ->  | N173: =(N117-N145)*#REF! ->  | O173: =(O117-O145)*#REF! ->  | P173: =(P117-P145)*#REF! ->  | Q173: =(Q117-Q145)*#REF! ->  | R173: =(R117-R145)*#REF! ->  | S173: =(S117-S145)*#REF! ->  | T173: =(T117-T145)*#REF! -> 
B174: 24 | C174: =(C118-C146)*#REF! ->  | D174: =(D118-D146)*#REF! ->  | E174: =(E118-E146)*#REF! ->  | F174: =(F118-F146)*#REF! ->  | G174: =(G118-G146)*#REF! ->  | H174: =(H118-H146)*#REF! ->  | I174: =(I118-I146)*#REF! ->  | J174: =(J118-J146)*#REF! ->  | K174: =(K118-K146)*#REF! ->  | L174: =(L118-L146)*#REF! ->  | M174: =(M118-M146)*#REF! ->  | N174: =(N118-N146)*#REF! ->  | O174: =(O118-O146)*#REF! ->  | P174: =(P118-P146)*#REF! ->  | Q174: =(Q118-Q146)*#REF! ->  | R174: =(R118-R146)*#REF! ->  | S174: =(S118-S146)*#REF! ->  | T174: =(T118-T146)*#REF! -> 
B175: 26 | C175: =(C119-C147)*#REF! ->  | D175: =(D119-D147)*#REF! ->  | E175: =(E119-E147)*#REF! ->  | F175: =(F119-F147)*#REF! ->  | G175: =(G119-G147)*#REF! ->  | H175: =(H119-H147)*#REF! ->  | I175: =(I119-I147)*#REF! ->  | J175: =(J119-J147)*#REF! ->  | K175: =(K119-K147)*#REF! ->  | L175: =(L119-L147)*#REF! ->  | M175: =(M119-M147)*#REF! ->  | N175: =(N119-N147)*#REF! ->  | O175: =(O119-O147)*#REF! ->  | P175: =(P119-P147)*#REF! ->  | Q175: =(Q119-Q147)*#REF! ->  | R175: =(R119-R147)*#REF! ->  | S175: =(S119-S147)*#REF! ->  | T175: =(T119-T147)*#REF! -> 
B176: 28 | C176: =(C120-C148)*#REF! ->  | D176: =(D120-D148)*#REF! ->  | E176: =(E120-E148)*#REF! ->  | F176: =(F120-F148)*#REF! ->  | G176: =(G120-G148)*#REF! ->  | H176: =(H120-H148)*#REF! ->  | I176: =(I120-I148)*#REF! ->  | J176: =(J120-J148)*#REF! ->  | K176: =(K120-K148)*#REF! ->  | L176: =(L120-L148)*#REF! ->  | M176: =(M120-M148)*#REF! ->  | N176: =(N120-N148)*#REF! ->  | O176: =(O120-O148)*#REF! ->  | P176: =(P120-P148)*#REF! ->  | Q176: =(Q120-Q148)*#REF! ->  | R176: =(R120-R148)*#REF! ->  | S176: =(S120-S148)*#REF! ->  | T176: =(T120-T148)*#REF! -> 
B177: 30 | C177: =(C121-C149)*#REF! ->  | D177: =(D121-D149)*#REF! ->  | E177: =(E121-E149)*#REF! ->  | F177: =(F121-F149)*#REF! ->  | G177: =(G121-G149)*#REF! ->  | H177: =(H121-H149)*#REF! ->  | I177: =(I121-I149)*#REF! ->  | J177: =(J121-J149)*#REF! ->  | K177: =(K121-K149)*#REF! ->  | L177: =(L121-L149)*#REF! ->  | M177: =(M121-M149)*#REF! ->  | N177: =(N121-N149)*#REF! ->  | O177: =(O121-O149)*#REF! ->  | P177: =(P121-P149)*#REF! ->  | Q177: =(Q121-Q149)*#REF! ->  | R177: =(R121-R149)*#REF! ->  | S177: =(S121-S149)*#REF! ->  | T177: =(T121-T149)*#REF! -> 
B178: 32 | C178: =(C122-C150)*#REF! ->  | D178: =(D122-D150)*#REF! ->  | E178: =(E122-E150)*#REF! ->  | F178: =(F122-F150)*#REF! ->  | G178: =(G122-G150)*#REF! ->  | H178: =(H122-H150)*#REF! ->  | I178: =(I122-I150)*#REF! ->  | J178: =(J122-J150)*#REF! ->  | K178: =(K122-K150)*#REF! ->  | L178: =(L122-L150)*#REF! ->  | M178: =(M122-M150)*#REF! ->  | N178: =(N122-N150)*#REF! ->  | O178: =(O122-O150)*#REF! ->  | P178: =(P122-P150)*#REF! ->  | Q178: =(Q122-Q150)*#REF! ->  | R178: =(R122-R150)*#REF! ->  | S178: =(S122-S150)*#REF! ->  | T178: =(T122-T150)*#REF! -> 
B179: 34 | C179: =(C123-C151)*#REF! ->  | D179: =(D123-D151)*#REF! ->  | E179: =(E123-E151)*#REF! ->  | F179: =(F123-F151)*#REF! ->  | G179: =(G123-G151)*#REF! ->  | H179: =(H123-H151)*#REF! ->  | I179: =(I123-I151)*#REF! ->  | J179: =(J123-J151)*#REF! ->  | K179: =(K123-K151)*#REF! ->  | L179: =(L123-L151)*#REF! ->  | M179: =(M123-M151)*#REF! ->  | N179: =(N123-N151)*#REF! ->  | O179: =(O123-O151)*#REF! ->  | P179: =(P123-P151)*#REF! ->  | Q179: =(Q123-Q151)*#REF! ->  | R179: =(R123-R151)*#REF! ->  | S179: =(S123-S151)*#REF! ->  | T179: =(T123-T151)*#REF! -> 
B180: 36 | C180: =(C124-C152)*#REF! ->  | D180: =(D124-D152)*#REF! ->  | E180: =(E124-E152)*#REF! ->  | F180: =(F124-F152)*#REF! ->  | G180: =(G124-G152)*#REF! ->  | H180: =(H124-H152)*#REF! ->  | I180: =(I124-I152)*#REF! ->  | J180: =(J124-J152)*#REF! ->  | K180: =(K124-K152)*#REF! ->  | L180: =(L124-L152)*#REF! ->  | M180: =(M124-M152)*#REF! ->  | N180: =(N124-N152)*#REF! ->  | O180: =(O124-O152)*#REF! ->  | P180: =(P124-P152)*#REF! ->  | Q180: =(Q124-Q152)*#REF! ->  | R180: =(R124-R152)*#REF! ->  | S180: =(S124-S152)*#REF! ->  | T180: =(T124-T152)*#REF! -> 
B181: 38 | C181: =(C125-C153)*#REF! ->  | D181: =(D125-D153)*#REF! ->  | E181: =(E125-E153)*#REF! ->  | F181: =(F125-F153)*#REF! ->  | G181: =(G125-G153)*#REF! ->  | H181: =(H125-H153)*#REF! ->  | I181: =(I125-I153)*#REF! ->  | J181: =(J125-J153)*#REF! ->  | K181: =(K125-K153)*#REF! ->  | L181: =(L125-L153)*#REF! ->  | M181: =(M125-M153)*#REF! ->  | N181: =(N125-N153)*#REF! ->  | O181: =(O125-O153)*#REF! ->  | P181: =(P125-P153)*#REF! ->  | Q181: =(Q125-Q153)*#REF! ->  | R181: =(R125-R153)*#REF! ->  | S181: =(S125-S153)*#REF! ->  | T181: =(T125-T153)*#REF! -> 
B182: 40 | C182: =(C126-C154)*#REF! ->  | D182: =(D126-D154)*#REF! ->  | E182: =(E126-E154)*#REF! ->  | F182: =(F126-F154)*#REF! ->  | G182: =(G126-G154)*#REF! ->  | H182: =(H126-H154)*#REF! ->  | I182: =(I126-I154)*#REF! ->  | J182: =(J126-J154)*#REF! ->  | K182: =(K126-K154)*#REF! ->  | L182: =(L126-L154)*#REF! ->  | M182: =(M126-M154)*#REF! ->  | N182: =(N126-N154)*#REF! ->  | O182: =(O126-O154)*#REF! ->  | P182: =(P126-P154)*#REF! ->  | Q182: =(Q126-Q154)*#REF! ->  | R182: =(R126-R154)*#REF! ->  | S182: =(S126-S154)*#REF! ->  | T182: =(T126-T154)*#REF! -> 

Sheet 2. Health impact
A9: Table 1. Health outcomes in each wealth quintile of the population
A10: Wealth Quintile Group | B10: Input 1: Average individual health under Programme A (QALE) | C10: Input 2: Incremental individual health impact from Programme B (QALYs) | D10: Average individual health under Programme B (QALE) | E10: Input 3: Population (n) | F10: Incremental population health impact from Programme B (QALYs)
A11: Q1 - poorest | B11: ='5. Final'!B4 -> 64.7 | C11: ='5. Final'!C4 -> 2 | D11: =C11+B11 -> 66.7 | E11: ='5. Final'!D4 -> 10000000 | F11: =E11*C11 -> 20000000
A12: Q2 | B12: ='5. Final'!B5 -> 71.87 | C12: ='5. Final'!C5 -> 1 | D12: =C12+B12 -> 72.87 | E12: ='5. Final'!D5 -> 10000000 | F12: =E12*C12 -> 10000000
A13: Q3 | B13: ='5. Final'!B6 -> 75.43 | C13: ='5. Final'!C6 -> 0 | D13: 75.43 | E13: ='5. Final'!D6 -> 10000000 | F13: 0
A14: Q4 | B14: ='5. Final'!B7 -> 77.79 | C14: ='5. Final'!C7 -> -2 | D14: 75.79 | E14: ='5. Final'!D7 -> 10000000 | F14: -20000000
A15: Q5 - richest | B15: ='5. Final'!B8 -> 80.5 | C15: ='5. Final'!C8 -> -3 | D15: 77.5 | E15: ='5. Final'!D8 -> 10000000 | F15: -30000000
A16: Total | E16: =SUM(E11:E15) -> 50000000 | F16: =SUM(F11:F15) -> -20000000
A17: Average | B17: =AVERAGE(B11:B15) -> 74.058 | C17: =AVERAGE(C11:C15) -> -0.4 | D17: 73.658
A30: Now that you have worked out and visualised the total health impact, let's quantify the equity impact. We will use the Atkinson inequality index as our equity metric. Sheet 3 will show you how to calculate this index.

Sheet 3. Equity impact
A6: Table 2. Atkinson welfare and inequality indices
C7: Programme A | E7: Programme B | G7: Difference
A8: Quintile Group | B8: Population (n) | C8: hi | D8: Formula: hi^(1-ε)*n | E8: hi | F8: Formula: hi^(1-ε)*n | G8: (B - A) | H8: Equity impact = -DA(ε) i.e. minus the change in the Atkinson inequality index
A9: Q1 - poorest | B9: ='5. Final'!D4 -> 10000000 | C9: ='2. Health impact'!B11 -> 64.7 | D9: =(C9^(1-atkinson_e))*B9 -> 7.779598668e-12 | E9: ='2. Health impact'!D11 -> 66.7 | F9: =(E9^(1-atkinson_e))*B9 -> 5.737750518e-12
A10: Q2 | B10: ='5. Final'!D5 -> 10000000 | C10: ='2. Health impact'!B12 -> 71.87 | D10: =(C10^(1-atkinson_e))*B10 -> 2.71971597e-12 | E10: ='2. Health impact'!D12 -> 72.87 | F10: =(E10^(1-atkinson_e))*B10 -> 2.368712243e-12
A11: Q3 | B11: ='5. Final'!D6 -> 10000000 | C11: ='2. Health impact'!B13 -> 75.43 | D11: =(C11^(1-atkinson_e))*B11 -> 1.677099861e-12 | E11: ='2. Health impact'!D13 -> 75.43 | F11: =(E11^(1-atkinson_e))*B11 -> 1.677099861e-12
A12: Q4 | B12: ='5. Final'!D7 -> 10000000 | C12: ='2. Health impact'!B14 -> 77.79 | D12: =(C12^(1-atkinson_e))*B12 -> 1.232430067e-12 | E12: ='2. Health impact'!D14 -> 75.79 | F12: =(E12^(1-atkinson_e))*B12 -> 1.599119537e-12
A13: Q5 - richest | B13: ='5. Final'!D8 -> 10000000 | C13: ='2. Health impact'!B15 -> 80.5 | D13: =(C13^(1-atkinson_e))*B13 -> 8.750667784e-13 | E13: ='2. Health impact'!D15 -> 77.5 | F13: =(E13^(1-atkinson_e))*B13 -> 1.279331151e-12
A14: Total | B14: =SUM(B9:B13) -> 50000000 | D14: =SUM(D9:D13) -> 1.428391134e-11 | F14: =SUM(F9:F13) -> 1.266201331e-11
A15: Average | C15: =AVERAGE(C9:C13) -> 74.058 | D15: =D14/N -> 2.856782269e-19 | E15: =AVERAGE(E9:E13) -> 73.658 | F15: =F14/N -> 2.532402662e-19
A16: EDE [bigger is better] | D16: =D15^(1/(1-atkinson_e)) -> 71.51749361 | F16: =F15^(1/(1-atkinson_e)) -> 72.38469084 | G16: =F16-D16 -> 0.8671972359
A17: A(ε) [bigger is worse] | D17: =1-(D16/C15) -> 0.03430428032 | F17: =1-F16/E15 -> 0.01728677341 | G17: =F17-D17 -> -0.01701750691 | I17: =-G17 -> 0.01701750691
A19: Key Atkinson formulae:
A21: Welfare index | G21: Now look at the next sheet to see these results plotted on the equity impact plane. Once you have interpreted the equity impact plane, turn to sheet 4 to analyse the equity trade-off
A24: Inequality index
A26: where
A27: hi = individual health in quality adjusted life expectancy (QALE)
A28: N = total population size
A29: e = Atkinson inequality aversion parameter
A30: EDE = "Equally Distributed Equivalent" health (the Atkinson index of social welfare on the same scale as individual health)
A31: A(e) = Atkinson index of inequality (scaled from 0 to 1, where 0 represents no inequality and 1 represents full inequality)
A32: = mean health in the general population
A33: The Atkinson index of inequality measures the fraction of population health you would sacrifice to achieve full equality in health, given the current health distribution and your degree of inequality aversion

Sheet 4. Equity trade off
A3: Table 3. Summary health and inequality impacts for Programmes A and B
A4: Inequality aversion ε= | B4: 0 | C4: Comparator Programme A | E4: Equity-Focused Programme B
A5: Quintile Group | B5: Population (n) | C5: hi | D5: hi^(1-ε)*n | E5: hi | F5: hi^(1-ε)*n
A6: Q1 - poorest | B6: ='5. Final'!D4 -> 10000000 | C6: ='2. Health impact'!B11 -> 64.7 | D6: =B6*(C6^(1-$B$4)) -> 647000000 | E6: ='2. Health impact'!D11 -> 66.7 | F6: =B6*(E6^(1-$B$4)) -> 667000000
A7: Q2 | B7: ='5. Final'!D5 -> 10000000 | C7: ='2. Health impact'!B12 -> 71.87 | D7: =B7*(C7^(1-$B$4)) -> 718700000 | E7: ='2. Health impact'!D12 -> 72.87 | F7: =B7*(E7^(1-$B$4)) -> 728700000
A8: Q3 | B8: ='5. Final'!D6 -> 10000000 | C8: ='2. Health impact'!B13 -> 75.43 | D8: 754300000 | E8: ='2. Health impact'!D13 -> 75.43 | F8: 754300000
A9: Q4 | B9: ='5. Final'!D7 -> 10000000 | C9: ='2. Health impact'!B14 -> 77.79 | D9: 777900000 | E9: ='2. Health impact'!D14 -> 75.79 | F9: 757900000
A10: Q5- richest | B10: ='5. Final'!D8 -> 10000000 | C10: ='2. Health impact'!B15 -> 80.5 | D10: 805000000 | E10: ='2. Health impact'!D15 -> 77.5 | F10: 775000000
A11: Total | B11: =SUM(B6:B10) -> 50000000 | D11: =SUM(D6:D10) -> 3702900000 | F11: =SUM(F6:F10) -> 3682900000
A12: Average | C12: =AVERAGE(C6:C10) -> 74.058 | D12: =D11/$B$11 -> 74.058 | E12: =AVERAGE(E6:E10) -> 73.658 | F12: =F11/$B$11 -> 73.658
A13: EDE [bigger is better] | D13: =D12^(1/(1-$B$4)) -> 74.058 | F13: =F12^(1/(1-$B$4)) -> 73.658
A15: Data table showing how EDE QALY impact varies with inequality aversion, e
A16: Inequality aversion, ε | B16: Programme A EDE (QALYs) | C16: Programme B EDE (QALYs) | D16: EDE Impact (B - A) | E16: Population EDE Impact (EDE Impact * total N) | G16: The point at which EDE impact becomes positive is the point at which Programme B is preferred. The larger your degree of inequality aversion, the more worthwhile you will consider Programme B to be.
A17: 0 | B17: =D13 -> 74.058 | C17: =F13 -> 73.658 | D17: =C17-B17 -> -0.4 | E17: =D17*N -> -20000000
A18: 0.5 | B18: 73.95427731 | C18: 73.60815572 | D18: -0.3461215872 | E18: -17306079.36
A19: 0.99 | B19: 73.85087593 | C19: 73.55843946 | D19: -0.2924364622 | E19: -14621823.11 | G19: Now turn to sheet 5 to see how it all fits together
A20: 2 | B20: 73.63253018 | C20: 73.45328443 | D20: -0.1792457514 | E20: -8962287.57
A21: 3 | B21: 73.40996399 | C21: 73.34569796 | D21: -0.06426603017 | E21: -3213301.509
A22: 4 | B22: 73.18181924 | C22: 73.23478785 | D22: 0.05296861354 | E22: 2648430.677
A23: 5 | B23: 72.94900885 | C23: 73.12072567 | D23: 0.1717168197 | E23: 8585840.986
A24: 6 | B24: 72.71257152 | C24: 73.00372364 | D24: 0.2911521195 | E24: 14557605.97
A25: 7 | B25: 72.47364651 | C25: 72.8840339 | D25: 0.4103873913 | E25: 20519369.57
A26: 8 | B26: 72.2334419 | C26: 72.7619465 | D26: 0.5285046019 | E26: 26425230.09
A27: 9 | B27: 71.99319842 | C27: 72.63778616 | D27: 0.6445877385 | E27: 32229386.93
A28: 10 | B28: 71.75415139 | C28: 72.51190777 | D28: 0.7577563812 | E28: 37887819.06
A29: 11 | B29: 71.51749361 | C29: 72.38469084 | D29: 0.8671972359 | E29: 43359861.79
A30: 12 | B30: 71.28434179 | C30: 72.25653299 | D30: 0.9721912004 | E30: 48609560.02
A31: 13 | B31: 71.05570874 | C31: 72.12784284 | D31: 1.072134094 | E31: 53606704.7
A32: 14 | B32: 70.83248259 | C32: 71.99903254 | D32: 1.166549953 | E32: 58327497.63
A33: 15 | B33: 70.61541373 | C33: 71.87051036 | D33: 1.255096626 | E33: 62754831.29
A34: 16 | B34: 70.40510929 | C34: 71.74267346 | D34: 1.337564171 | E34: 66878208.57
A35: 17 | B35: 70.20203429 | C35: 71.61590142 | D35: 1.413867128 | E35: 70693356.41
A36: 18 | B36: 70.00651834 | C36: 71.49055045 | D36: 1.484032109 | E36: 74201605.43
A37: 20 | B37: 69.63887255 | C37: 71.24539278 | D37: 1.606520237 | E37: 80326011.83

Sheet 5. Final
A1: Equity Trade-Off Dashboard
A2: Try changing the input values in blue.
A3: Quintile Group | B3: Prog A Individual health (QALE) | C3: Prog B Individual net health impact (QALE) | D3: Pop (n)
A4: Q1 - poorest fifth | B4: =61.7+3 -> 64.7 | C4: 2 | D4: =10000000 -> 10000000
A5: Q2 | B5: =67.87+4 -> 71.87 | C5: 1 | D5: =10000000 -> 10000000
A6: Q3 | B6: =70.43+5 -> 75.43 | C6: 0 | D6: 10000000
A7: Q4 | B7: =71.79+6 -> 77.79 | C7: -2 | D7: 10000000
A8: Q5 - richest fifth | B8: =73.5+7 -> 80.5 | C8: -3 | D8: 10000000
A10: Results | D10: 0.03424910104
A11: Net individual health impact (QALE) | C11: ='2. Health impact'!C17 -> -0.4
A12: Net population health impact (QALYs) | C12: ='2. Health impact'!F16 -> -20000000
A13: Net equity impact | C13: ='3. Equity impact'!I17 -> 0.01701750691
A15: Inequality aversion parameter, e | B15: 11 | C15: atkinson_e
A16: Implied equity weight to the poorest fifth | B16: ='Equity weight 1'!B15 -> 11.12922069
A17: Implied Atkinson inequality index - the proportion of total health you are willing to sacrifice for equal health | B17: ='Equity weight 1'!B11 -> 0.03424910104
A18: Try entering a different inequality aversion parameter in the green box. Then click the grey button to update the equity weight.
A96: Threshold Analysis: Standard Vaccine EDE
B98: Threshold
A99: =D13 -> 0 | B99: 25 | C99: 50 | D99: 75 | E99: 100 | F99: 125 | G99: 150 | H99: 175 | I99: 200 | J99: 225 | K99: 250 | L99: 275 | M99: 300 | N99: 325 | O99: 350 | P99: 375 | Q99: 400 | R99: 619.14 | S99: 1857.42
A100: 0 | B100: 0 | C100: 0 | D100: 0 | E100: 0 | F100: 0 | G100: 0 | H100: 0 | I100: 0 | J100: 0 | K100: 0 | L100: 0 | M100: 0 | N100: 0 | O100: 0 | P100: 0 | Q100: 0 | R100: 0 | S100: 0
A101: 2 | B101: 0 | C101: 0 | D101: 0 | E101: 0 | F101: 0 | G101: 0 | H101: 0 | I101: 0 | J101: 0 | K101: 0 | L101: 0 | M101: 0 | N101: 0 | O101: 0 | P101: 0 | Q101: 0 | R101: 0 | S101: 0
A102: 4 | B102: 0 | C102: 0 | D102: 0 | E102: 0 | F102: 0 | G102: 0 | H102: 0 | I102: 0 | J102: 0 | K102: 0 | L102: 0 | M102: 0 | N102: 0 | O102: 0 | P102: 0 | Q102: 0 | R102: 0 | S102: 0
A103: 6 | B103: 0 | C103: 0 | D103: 0 | E103: 0 | F103: 0 | G103: 0 | H103: 0 | I103: 0 | J103: 0 | K103: 0 | L103: 0 | M103: 0 | N103: 0 | O103: 0 | P103: 0 | Q103: 0 | R103: 0 | S103: 0
A104: 8 | B104: 0 | C104: 0 | D104: 0 | E104: 0 | F104: 0 | G104: 0 | H104: 0 | I104: 0 | J104: 0 | K104: 0 | L104: 0 | M104: 0 | N104: 0 | O104: 0 | P104: 0 | Q104: 0 | R104: 0 | S104: 0
A105: 10 | B105: 0 | C105: 0 | D105: 0 | E105: 0 | F105: 0 | G105: 0 | H105: 0 | I105: 0 | J105: 0 | K105: 0 | L105: 0 | M105: 0 | N105: 0 | O105: 0 | P105: 0 | Q105: 0 | R105: 0 | S105: 0
A106: 12 | B106: 0 | C106: 0 | D106: 0 | E106: 0 | F106: 0 | G106: 0 | H106: 0 | I106: 0 | J106: 0 | K106: 0 | L106: 0 | M106: 0 | N106: 0 | O106: 0 | P106: 0 | Q106: 0 | R106: 0 | S106: 0
A107: 14 | B107: 0 | C107: 0 | D107: 0 | E107: 0 | F107: 0 | G107: 0 | H107: 0 | I107: 0 | J107: 0 | K107: 0 | L107: 0 | M107: 0 | N107: 0 | O107: 0 | P107: 0 | Q107: 0 | R107: 0 | S107: 0
A108: 16 | B108: 0 | C108: 0 | D108: 0 | E108: 0 | F108: 0 | G108: 0 | H108: 0 | I108: 0 | J108: 0 | K108: 0 | L108: 0 | M108: 0 | N108: 0 | O108: 0 | P108: 0 | Q108: 0 | R108: 0 | S108: 0
A109: 18 | B109: 0 | C109: 0 | D109: 0 | E109: 0 | F109: 0 | G109: 0 | H109: 0 | I109: 0 | J109: 0 | K109: 0 | L109: 0 | M109: 0 | N109: 0 | O109: 0 | P109: 0 | Q109: 0 | R109: 0 | S109: 0
A110: 20 | B110: 0 | C110: 0 | D110: 0 | E110: 0 | F110: 0 | G110: 0 | H110: 0 | I110: 0 | J110: 0 | K110: 0 | L110: 0 | M110: 0 | N110: 0 | O110: 0 | P110: 0 | Q110: 0 | R110: 0 | S110: 0
A111: 22 | B111: 0 | C111: 0 | D111: 0 | E111: 0 | F111: 0 | G111: 0 | H111: 0 | I111: 0 | J111: 0 | K111: 0 | L111: 0 | M111: 0 | N111: 0 | O111: 0 | P111: 0 | Q111: 0 | R111: 0 | S111: 0
A112: 24 | B112: 0 | C112: 0 | D112: 0 | E112: 0 | F112: 0 | G112: 0 | H112: 0 | I112: 0 | J112: 0 | K112: 0 | L112: 0 | M112: 0 | N112: 0 | O112: 0 | P112: 0 | Q112: 0 | R112: 0 | S112: 0
A113: 26 | B113: 0 | C113: 0 | D113: 0 | E113: 0 | F113: 0 | G113: 0 | H113: 0 | I113: 0 | J113: 0 | K113: 0 | L113: 0 | M113: 0 | N113: 0 | O113: 0 | P113: 0 | Q113: 0 | R113: 0 | S113: 0
A114: 28 | B114: 0 | C114: 0 | D114: 0 | E114: 0 | F114: 0 | G114: 0 | H114: 0 | I114: 0 | J114: 0 | K114: 0 | L114: 0 | M114: 0 | N114: 0 | O114: 0 | P114: 0 | Q114: 0 | R114: 0 | S114: 0
A115: 30 | B115: 0 | C115: 0 | D115: 0 | E115: 0 | F115: 0 | G115: 0 | H115: 0 | I115: 0 | J115: 0 | K115: 0 | L115: 0 | M115: 0 | N115: 0 | O115: 0 | P115: 0 | Q115: 0 | R115: 0 | S115: 0
A116: 32 | B116: 0 | C116: 0 | D116: 0 | E116: 0 | F116: 0 | G116: 0 | H116: 0 | I116: 0 | J116: 0 | K116: 0 | L116: 0 | M116: 0 | N116: 0 | O116: 0 | P116: 0 | Q116: 0 | R116: 0 | S116: 0
A117: 34 | B117: 0 | C117: 0 | D117: 0 | E117: 0 | F117: 0 | G117: 0 | H117: 0 | I117: 0 | J117: 0 | K117: 0 | L117: 0 | M117: 0 | N117: 0 | O117: 0 | P117: 0 | Q117: 0 | R117: 0 | S117: 0
A118: 36 | B118: 0 | C118: 0 | D118: 0 | E118: 0 | F118: 0 | G118: 0 | H118: 0 | I118: 0 | J118: 0 | K118: 0 | L118: 0 | M118: 0 | N118: 0 | O118: 0 | P118: 0 | Q118: 0 | R118: 0 | S118: 0
A119: 38 | B119: 0 | C119: 0 | D119: 0 | E119: 0 | F119: 0 | G119: 0 | H119: 0 | I119: 0 | J119: 0 | K119: 0 | L119: 0 | M119: 0 | N119: 0 | O119: 0 | P119: 0 | Q119: 0 | R119: 0 | S119: 0
A120: 40 | B120: 0 | C120: 0 | D120: 0 | E120: 0 | F120: 0 | G120: 0 | H120: 0 | I120: 0 | J120: 0 | K120: 0 | L120: 0 | M120: 0 | N120: 0 | O120: 0 | P120: 0 | Q120: 0 | R120: 0 | S120: 0
A124: Threshold Analysis: Equitable Vaccine EDE
B126: Threshold
A127: =$G$13 -> 0 | B127: 25 | C127: 50 | D127: 75 | E127: 100 | F127: 125 | G127: 150 | H127: 175 | I127: 200 | J127: 225 | K127: 250 | L127: 275 | M127: 300 | N127: 325 | O127: 350 | P127: 375 | Q127: 400 | R127: 619.14 | S127: 1857.42
A128: 0 | B128: 0 | C128: 0 | D128: 0 | E128: 0 | F128: 0 | G128: 0 | H128: 0 | I128: 0 | J128: 0 | K128: 0 | L128: 0 | M128: 0 | N128: 0 | O128: 0 | P128: 0 | Q128: 0 | R128: 0 | S128: 0
A129: 2 | B129: 0 | C129: 0 | D129: 0 | E129: 0 | F129: 0 | G129: 0 | H129: 0 | I129: 0 | J129: 0 | K129: 0 | L129: 0 | M129: 0 | N129: 0 | O129: 0 | P129: 0 | Q129: 0 | R129: 0 | S129: 0
A130: 4 | B130: 0 | C130: 0 | D130: 0 | E130: 0 | F130: 0 | G130: 0 | H130: 0 | I130: 0 | J130: 0 | K130: 0 | L130: 0 | M130: 0 | N130: 0 | O130: 0 | P130: 0 | Q130: 0 | R130: 0 | S130: 0
A131: 6 | B131: 0 | C131: 0 | D131: 0 | E131: 0 | F131: 0 | G131: 0 | H131: 0 | I131: 0 | J131: 0 | K131: 0 | L131: 0 | M131: 0 | N131: 0 | O131: 0 | P131: 0 | Q131: 0 | R131: 0 | S131: 0
A132: 8 | B132: 0 | C132: 0 | D132: 0 | E132: 0 | F132: 0 | G132: 0 | H132: 0 | I132: 0 | J132: 0 | K132: 0 | L132: 0 | M132: 0 | N132: 0 | O132: 0 | P132: 0 | Q132: 0 | R132: 0 | S132: 0
A133: 10 | B133: 0 | C133: 0 | D133: 0 | E133: 0 | F133: 0 | G133: 0 | H133: 0 | I133: 0 | J133: 0 | K133: 0 | L133: 0 | M133: 0 | N133: 0 | O133: 0 | P133: 0 | Q133: 0 | R133: 0 | S133: 0
A134: 12 | B134: 0 | C134: 0 | D134: 0 | E134: 0 | F134: 0 | G134: 0 | H134: 0 | I134: 0 | J134: 0 | K134: 0 | L134: 0 | M134: 0 | N134: 0 | O134: 0 | P134: 0 | Q134: 0 | R134: 0 | S134: 0
A135: 14 | B135: 0 | C135: 0 | D135: 0 | E135: 0 | F135: 0 | G135: 0 | H135: 0 | I135: 0 | J135: 0 | K135: 0 | L135: 0 | M135: 0 | N135: 0 | O135: 0 | P135: 0 | Q135: 0 | R135: 0 | S135: 0
A136: 16 | B136: 0 | C136: 0 | D136: 0 | E136: 0 | F136: 0 | G136: 0 | H136: 0 | I136: 0 | J136: 0 | K136: 0 | L136: 0 | M136: 0 | N136: 0 | O136: 0 | P136: 0 | Q136: 0 | R136: 0 | S136: 0
A137: 18 | B137: 0 | C137: 0 | D137: 0 | E137: 0 | F137: 0 | G137: 0 | H137: 0 | I137: 0 | J137: 0 | K137: 0 | L137: 0 | M137: 0 | N137: 0 | O137: 0 | P137: 0 | Q137: 0 | R137: 0 | S137: 0
A138: 20 | B138: 0 | C138: 0 | D138: 0 | E138: 0 | F138: 0 | G138: 0 | H138: 0 | I138: 0 | J138: 0 | K138: 0 | L138: 0 | M138: 0 | N138: 0 | O138: 0 | P138: 0 | Q138: 0 | R138: 0 | S138: 0
A139: 22 | B139: 0 | C139: 0 | D139: 0 | E139: 0 | F139: 0 | G139: 0 | H139: 0 | I139: 0 | J139: 0 | K139: 0 | L139: 0 | M139: 0 | N139: 0 | O139: 0 | P139: 0 | Q139: 0 | R139: 0 | S139: 0
A140: 24 | B140: 0 | C140: 0 | D140: 0 | E140: 0 | F140: 0 | G140: 0 | H140: 0 | I140: 0 | J140: 0 | K140: 0 | L140: 0 | M140: 0 | N140: 0 | O140: 0 | P140: 0 | Q140: 0 | R140: 0 | S140: 0
A141: 26 | B141: 0 | C141: 0 | D141: 0 | E141: 0 | F141: 0 | G141: 0 | H141: 0 | I141: 0 | J141: 0 | K141: 0 | L141: 0 | M141: 0 | N141: 0 | O141: 0 | P141: 0 | Q141: 0 | R141: 0 | S141: 0
A142: 28 | B142: 0 | C142: 0 | D142: 0 | E142: 0 | F142: 0 | G142: 0 | H142: 0 | I142: 0 | J142: 0 | K142: 0 | L142: 0 | M142: 0 | N142: 0 | O142: 0 | P142: 0 | Q142: 0 | R142: 0 | S142: 0
A143: 30 | B143: 0 | C143: 0 | D143: 0 | E143: 0 | F143: 0 | G143: 0 | H143: 0 | I143: 0 | J143: 0 | K143: 0 | L143: 0 | M143: 0 | N143: 0 | O143: 0 | P143: 0 | Q143: 0 | R143: 0 | S143: 0
A144: 32 | B144: 0 | C144: 0 | D144: 0 | E144: 0 | F144: 0 | G144: 0 | H144: 0 | I144: 0 | J144: 0 | K144: 0 | L144: 0 | M144: 0 | N144: 0 | O144: 0 | P144: 0 | Q144: 0 | R144: 0 | S144: 0
A145: 34 | B145: 0 | C145: 0 | D145: 0 | E145: 0 | F145: 0 | G145: 0 | H145: 0 | I145: 0 | J145: 0 | K145: 0 | L145: 0 | M145: 0 | N145: 0 | O145: 0 | P145: 0 | Q145: 0 | R145: 0 | S145: 0
A146: 36 | B146: 0 | C146: 0 | D146: 0 | E146: 0 | F146: 0 | G146: 0 | H146: 0 | I146: 0 | J146: 0 | K146: 0 | L146: 0 | M146: 0 | N146: 0 | O146: 0 | P146: 0 | Q146: 0 | R146: 0 | S146: 0
A147: 38 | B147: 0 | C147: 0 | D147: 0 | E147: 0 | F147: 0 | G147: 0 | H147: 0 | I147: 0 | J147: 0 | K147: 0 | L147: 0 | M147: 0 | N147: 0 | O147: 0 | P147: 0 | Q147: 0 | R147: 0 | S147: 0
A148: 40 | B148: 0 | C148: 0 | D148: 0 | E148: 0 | F148: 0 | G148: 0 | H148: 0 | I148: 0 | J148: 0 | K148: 0 | L148: 0 | M148: 0 | N148: 0 | O148: 0 | P148: 0 | Q148: 0 | R148: 0 | S148: 0
A152: Threshold Analysis: Standard Vaccine EDE- Equitable vaccine EDE
B154: Threshold
B155: 25 | C155: 50 | D155: 75 | E155: 100 | F155: 125 | G155: 150 | H155: 175 | I155: 200 | J155: 225 | K155: 250 | L155: 275 | M155: 300 | N155: 325 | O155: 350 | P155: 375 | Q155: 400 | R155: 619.14 | S155: 1857.42
A156: 0 | B156: =(B100-B128)*#REF! ->  | C156: =(C100-C128)*#REF! ->  | D156: =(D100-D128)*#REF! ->  | E156: =(E100-E128)*#REF! ->  | F156: =(F100-F128)*#REF! ->  | G156: =(G100-G128)*#REF! ->  | H156: =(H100-H128)*#REF! ->  | I156: =(I100-I128)*#REF! ->  | J156: =(J100-J128)*#REF! ->  | K156: =(K100-K128)*#REF! ->  | L156: =(L100-L128)*#REF! ->  | M156: =(M100-M128)*#REF! ->  | N156: =(N100-N128)*#REF! ->  | O156: =(O100-O128)*#REF! ->  | P156: =(P100-P128)*#REF! ->  | Q156: =(Q100-Q128)*#REF! ->  | R156: =(R100-R128)*#REF! ->  | S156: =(S100-S128)*#REF! -> 
A157: 2 | B157: =(B101-B129)*#REF! ->  | C157: =(C101-C129)*#REF! ->  | D157: =(D101-D129)*#REF! ->  | E157: =(E101-E129)*#REF! ->  | F157: =(F101-F129)*#REF! ->  | G157: =(G101-G129)*#REF! ->  | H157: =(H101-H129)*#REF! ->  | I157: =(I101-I129)*#REF! ->  | J157: =(J101-J129)*#REF! ->  | K157: =(K101-K129)*#REF! ->  | L157: =(L101-L129)*#REF! ->  | M157: =(M101-M129)*#REF! ->  | N157: =(N101-N129)*#REF! ->  | O157: =(O101-O129)*#REF! ->  | P157: =(P101-P129)*#REF! ->  | Q157: =(Q101-Q129)*#REF! ->  | R157: =(R101-R129)*#REF! ->  | S157: =(S101-S129)*#REF! -> 
A158: 4 | B158: =(B102-B130)*#REF! ->  | C158: =(C102-C130)*#REF! ->  | D158: =(D102-D130)*#REF! ->  | E158: =(E102-E130)*#REF! ->  | F158: =(F102-F130)*#REF! ->  | G158: =(G102-G130)*#REF! ->  | H158: =(H102-H130)*#REF! ->  | I158: =(I102-I130)*#REF! ->  | J158: =(J102-J130)*#REF! ->  | K158: =(K102-K130)*#REF! ->  | L158: =(L102-L130)*#REF! ->  | M158: =(M102-M130)*#REF! ->  | N158: =(N102-N130)*#REF! ->  | O158: =(O102-O130)*#REF! ->  | P158: =(P102-P130)*#REF! ->  | Q158: =(Q102-Q130)*#REF! ->  | R158: =(R102-R130)*#REF! ->  | S158: =(S102-S130)*#REF! -> 
A159: 6 | B159: =(B103-B131)*#REF! ->  | C159: =(C103-C131)*#REF! ->  | D159: =(D103-D131)*#REF! ->  | E159: =(E103-E131)*#REF! ->  | F159: =(F103-F131)*#REF! ->  | G159: =(G103-G131)*#REF! ->  | H159: =(H103-H131)*#REF! ->  | I159: =(I103-I131)*#REF! ->  | J159: =(J103-J131)*#REF! ->  | K159: =(K103-K131)*#REF! ->  | L159: =(L103-L131)*#REF! ->  | M159: =(M103-M131)*#REF! ->  | N159: =(N103-N131)*#REF! ->  | O159: =(O103-O131)*#REF! ->  | P159: =(P103-P131)*#REF! ->  | Q159: =(Q103-Q131)*#REF! ->  | R159: =(R103-R131)*#REF! ->  | S159: =(S103-S131)*#REF! -> 
A160: 8 | B160: =(B104-B132)*#REF! ->  | C160: =(C104-C132)*#REF! ->  | D160: =(D104-D132)*#REF! ->  | E160: =(E104-E132)*#REF! ->  | F160: =(F104-F132)*#REF! ->  | G160: =(G104-G132)*#REF! ->  | H160: =(H104-H132)*#REF! ->  | I160: =(I104-I132)*#REF! ->  | J160: =(J104-J132)*#REF! ->  | K160: =(K104-K132)*#REF! ->  | L160: =(L104-L132)*#REF! ->  | M160: =(M104-M132)*#REF! ->  | N160: =(N104-N132)*#REF! ->  | O160: =(O104-O132)*#REF! ->  | P160: =(P104-P132)*#REF! ->  | Q160: =(Q104-Q132)*#REF! ->  | R160: =(R104-R132)*#REF! ->  | S160: =(S104-S132)*#REF! -> 
A161: 10 | B161: =(B105-B133)*#REF! ->  | C161: =(C105-C133)*#REF! ->  | D161: =(D105-D133)*#REF! ->  | E161: =(E105-E133)*#REF! ->  | F161: =(F105-F133)*#REF! ->  | G161: =(G105-G133)*#REF! ->  | H161: =(H105-H133)*#REF! ->  | I161: =(I105-I133)*#REF! ->  | J161: =(J105-J133)*#REF! ->  | K161: =(K105-K133)*#REF! ->  | L161: =(L105-L133)*#REF! ->  | M161: =(M105-M133)*#REF! ->  | N161: =(N105-N133)*#REF! ->  | O161: =(O105-O133)*#REF! ->  | P161: =(P105-P133)*#REF! ->  | Q161: =(Q105-Q133)*#REF! ->  | R161: =(R105-R133)*#REF! ->  | S161: =(S105-S133)*#REF! -> 
A162: 12 | B162: =(B106-B134)*#REF! ->  | C162: =(C106-C134)*#REF! ->  | D162: =(D106-D134)*#REF! ->  | E162: =(E106-E134)*#REF! ->  | F162: =(F106-F134)*#REF! ->  | G162: =(G106-G134)*#REF! ->  | H162: =(H106-H134)*#REF! ->  | I162: =(I106-I134)*#REF! ->  | J162: =(J106-J134)*#REF! ->  | K162: =(K106-K134)*#REF! ->  | L162: =(L106-L134)*#REF! ->  | M162: =(M106-M134)*#REF! ->  | N162: =(N106-N134)*#REF! ->  | O162: =(O106-O134)*#REF! ->  | P162: =(P106-P134)*#REF! ->  | Q162: =(Q106-Q134)*#REF! ->  | R162: =(R106-R134)*#REF! ->  | S162: =(S106-S134)*#REF! -> 
A163: 14 | B163: =(B107-B135)*#REF! ->  | C163: =(C107-C135)*#REF! ->  | D163: =(D107-D135)*#REF! ->  | E163: =(E107-E135)*#REF! ->  | F163: =(F107-F135)*#REF! ->  | G163: =(G107-G135)*#REF! ->  | H163: =(H107-H135)*#REF! ->  | I163: =(I107-I135)*#REF! ->  | J163: =(J107-J135)*#REF! ->  | K163: =(K107-K135)*#REF! ->  | L163: =(L107-L135)*#REF! ->  | M163: =(M107-M135)*#REF! ->  | N163: =(N107-N135)*#REF! ->  | O163: =(O107-O135)*#REF! ->  | P163: =(P107-P135)*#REF! ->  | Q163: =(Q107-Q135)*#REF! ->  | R163: =(R107-R135)*#REF! ->  | S163: =(S107-S135)*#REF! -> 
A164: 16 | B164: =(B108-B136)*#REF! ->  | C164: =(C108-C136)*#REF! ->  | D164: =(D108-D136)*#REF! ->  | E164: =(E108-E136)*#REF! ->  | F164: =(F108-F136)*#REF! ->  | G164: =(G108-G136)*#REF! ->  | H164: =(H108-H136)*#REF! ->  | I164: =(I108-I136)*#REF! ->  | J164: =(J108-J136)*#REF! ->  | K164: =(K108-K136)*#REF! ->  | L164: =(L108-L136)*#REF! ->  | M164: =(M108-M136)*#REF! ->  | N164: =(N108-N136)*#REF! ->  | O164: =(O108-O136)*#REF! ->  | P164: =(P108-P136)*#REF! ->  | Q164: =(Q108-Q136)*#REF! ->  | R164: =(R108-R136)*#REF! ->  | S164: =(S108-S136)*#REF! -> 
A165: 18 | B165: =(B109-B137)*#REF! ->  | C165: =(C109-C137)*#REF! ->  | D165: =(D109-D137)*#REF! ->  | E165: =(E109-E137)*#REF! ->  | F165: =(F109-F137)*#REF! ->  | G165: =(G109-G137)*#REF! ->  | H165: =(H109-H137)*#REF! ->  | I165: =(I109-I137)*#REF! ->  | J165: =(J109-J137)*#REF! ->  | K165: =(K109-K137)*#REF! ->  | L165: =(L109-L137)*#REF! ->  | M165: =(M109-M137)*#REF! ->  | N165: =(N109-N137)*#REF! ->  | O165: =(O109-O137)*#REF! ->  | P165: =(P109-P137)*#REF! ->  | Q165: =(Q109-Q137)*#REF! ->  | R165: =(R109-R137)*#REF! ->  | S165: =(S109-S137)*#REF! -> 
A166: 20 | B166: =(B110-B138)*#REF! ->  | C166: =(C110-C138)*#REF! ->  | D166: =(D110-D138)*#REF! ->  | E166: =(E110-E138)*#REF! ->  | F166: =(F110-F138)*#REF! ->  | G166: =(G110-G138)*#REF! ->  | H166: =(H110-H138)*#REF! ->  | I166: =(I110-I138)*#REF! ->  | J166: =(J110-J138)*#REF! ->  | K166: =(K110-K138)*#REF! ->  | L166: =(L110-L138)*#REF! ->  | M166: =(M110-M138)*#REF! ->  | N166: =(N110-N138)*#REF! ->  | O166: =(O110-O138)*#REF! ->  | P166: =(P110-P138)*#REF! ->  | Q166: =(Q110-Q138)*#REF! ->  | R166: =(R110-R138)*#REF! ->  | S166: =(S110-S138)*#REF! -> 
A167: 22 | B167: =(B111-B139)*#REF! ->  | C167: =(C111-C139)*#REF! ->  | D167: =(D111-D139)*#REF! ->  | E167: =(E111-E139)*#REF! ->  | F167: =(F111-F139)*#REF! ->  | G167: =(G111-G139)*#REF! ->  | H167: =(H111-H139)*#REF! ->  | I167: =(I111-I139)*#REF! ->  | J167: =(J111-J139)*#REF! ->  | K167: =(K111-K139)*#REF! ->  | L167: =(L111-L139)*#REF! ->  | M167: =(M111-M139)*#REF! ->  | N167: =(N111-N139)*#REF! ->  | O167: =(O111-O139)*#REF! ->  | P167: =(P111-P139)*#REF! ->  | Q167: =(Q111-Q139)*#REF! ->  | R167: =(R111-R139)*#REF! ->  | S167: =(S111-S139)*#REF! -> 
A168: 24 | B168: =(B112-B140)*#REF! ->  | C168: =(C112-C140)*#REF! ->  | D168: =(D112-D140)*#REF! ->  | E168: =(E112-E140)*#REF! ->  | F168: =(F112-F140)*#REF! ->  | G168: =(G112-G140)*#REF! ->  | H168: =(H112-H140)*#REF! ->  | I168: =(I112-I140)*#REF! ->  | J168: =(J112-J140)*#REF! ->  | K168: =(K112-K140)*#REF! ->  | L168: =(L112-L140)*#REF! ->  | M168: =(M112-M140)*#REF! ->  | N168: =(N112-N140)*#REF! ->  | O168: =(O112-O140)*#REF! ->  | P168: =(P112-P140)*#REF! ->  | Q168: =(Q112-Q140)*#REF! ->  | R168: =(R112-R140)*#REF! ->  | S168: =(S112-S140)*#REF! -> 
A169: 26 | B169: =(B113-B141)*#REF! ->  | C169: =(C113-C141)*#REF! ->  | D169: =(D113-D141)*#REF! ->  | E169: =(E113-E141)*#REF! ->  | F169: =(F113-F141)*#REF! ->  | G169: =(G113-G141)*#REF! ->  | H169: =(H113-H141)*#REF! ->  | I169: =(I113-I141)*#REF! ->  | J169: =(J113-J141)*#REF! ->  | K169: =(K113-K141)*#REF! ->  | L169: =(L113-L141)*#REF! ->  | M169: =(M113-M141)*#REF! ->  | N169: =(N113-N141)*#REF! ->  | O169: =(O113-O141)*#REF! ->  | P169: =(P113-P141)*#REF! ->  | Q169: =(Q113-Q141)*#REF! ->  | R169: =(R113-R141)*#REF! ->  | S169: =(S113-S141)*#REF! -> 
A170: 28 | B170: =(B114-B142)*#REF! ->  | C170: =(C114-C142)*#REF! ->  | D170: =(D114-D142)*#REF! ->  | E170: =(E114-E142)*#REF! ->  | F170: =(F114-F142)*#REF! ->  | G170: =(G114-G142)*#REF! ->  | H170: =(H114-H142)*#REF! ->  | I170: =(I114-I142)*#REF! ->  | J170: =(J114-J142)*#REF! ->  | K170: =(K114-K142)*#REF! ->  | L170: =(L114-L142)*#REF! ->  | M170: =(M114-M142)*#REF! ->  | N170: =(N114-N142)*#REF! ->  | O170: =(O114-O142)*#REF! ->  | P170: =(P114-P142)*#REF! ->  | Q170: =(Q114-Q142)*#REF! ->  | R170: =(R114-R142)*#REF! ->  | S170: =(S114-S142)*#REF! -> 
A171: 30 | B171: =(B115-B143)*#REF! ->  | C171: =(C115-C143)*#REF! ->  | D171: =(D115-D143)*#REF! ->  | E171: =(E115-E143)*#REF! ->  | F171: =(F115-F143)*#REF! ->  | G171: =(G115-G143)*#REF! ->  | H171: =(H115-H143)*#REF! ->  | I171: =(I115-I143)*#REF! ->  | J171: =(J115-J143)*#REF! ->  | K171: =(K115-K143)*#REF! ->  | L171: =(L115-L143)*#REF! ->  | M171: =(M115-M143)*#REF! ->  | N171: =(N115-N143)*#REF! ->  | O171: =(O115-O143)*#REF! ->  | P171: =(P115-P143)*#REF! ->  | Q171: =(Q115-Q143)*#REF! ->  | R171: =(R115-R143)*#REF! ->  | S171: =(S115-S143)*#REF! -> 
A172: 32 | B172: =(B116-B144)*#REF! ->  | C172: =(C116-C144)*#REF! ->  | D172: =(D116-D144)*#REF! ->  | E172: =(E116-E144)*#REF! ->  | F172: =(F116-F144)*#REF! ->  | G172: =(G116-G144)*#REF! ->  | H172: =(H116-H144)*#REF! ->  | I172: =(I116-I144)*#REF! ->  | J172: =(J116-J144)*#REF! ->  | K172: =(K116-K144)*#REF! ->  | L172: =(L116-L144)*#REF! ->  | M172: =(M116-M144)*#REF! ->  | N172: =(N116-N144)*#REF! ->  | O172: =(O116-O144)*#REF! ->  | P172: =(P116-P144)*#REF! ->  | Q172: =(Q116-Q144)*#REF! ->  | R172: =(R116-R144)*#REF! ->  | S172: =(S116-S144)*#REF! -> 
A173: 34 | B173: =(B117-B145)*#REF! ->  | C173: =(C117-C145)*#REF! ->  | D173: =(D117-D145)*#REF! ->  | E173: =(E117-E145)*#REF! ->  | F173: =(F117-F145)*#REF! ->  | G173: =(G117-G145)*#REF! ->  | H173: =(H117-H145)*#REF! ->  | I173: =(I117-I145)*#REF! ->  | J173: =(J117-J145)*#REF! ->  | K173: =(K117-K145)*#REF! ->  | L173: =(L117-L145)*#REF! ->  | M173: =(M117-M145)*#REF! ->  | N173: =(N117-N145)*#REF! ->  | O173: =(O117-O145)*#REF! ->  | P173: =(P117-P145)*#REF! ->  | Q173: =(Q117-Q145)*#REF! ->  | R173: =(R117-R145)*#REF! ->  | S173: =(S117-S145)*#REF! -> 
A174: 36 | B174: =(B118-B146)*#REF! ->  | C174: =(C118-C146)*#REF! ->  | D174: =(D118-D146)*#REF! ->  | E174: =(E118-E146)*#REF! ->  | F174: =(F118-F146)*#REF! ->  | G174: =(G118-G146)*#REF! ->  | H174: =(H118-H146)*#REF! ->  | I174: =(I118-I146)*#REF! ->  | J174: =(J118-J146)*#REF! ->  | K174: =(K118-K146)*#REF! ->  | L174: =(L118-L146)*#REF! ->  | M174: =(M118-M146)*#REF! ->  | N174: =(N118-N146)*#REF! ->  | O174: =(O118-O146)*#REF! ->  | P174: =(P118-P146)*#REF! ->  | Q174: =(Q118-Q146)*#REF! ->  | R174: =(R118-R146)*#REF! ->  | S174: =(S118-S146)*#REF! -> 
A175: 38 | B175: =(B119-B147)*#REF! ->  | C175: =(C119-C147)*#REF! ->  | D175: =(D119-D147)*#REF! ->  | E175: =(E119-E147)*#REF! ->  | F175: =(F119-F147)*#REF! ->  | G175: =(G119-G147)*#REF! ->  | H175: =(H119-H147)*#REF! ->  | I175: =(I119-I147)*#REF! ->  | J175: =(J119-J147)*#REF! ->  | K175: =(K119-K147)*#REF! ->  | L175: =(L119-L147)*#REF! ->  | M175: =(M119-M147)*#REF! ->  | N175: =(N119-N147)*#REF! ->  | O175: =(O119-O147)*#REF! ->  | P175: =(P119-P147)*#REF! ->  | Q175: =(Q119-Q147)*#REF! ->  | R175: =(R119-R147)*#REF! ->  | S175: =(S119-S147)*#REF! -> 
A176: 40 | B176: =(B120-B148)*#REF! ->  | C176: =(C120-C148)*#REF! ->  | D176: =(D120-D148)*#REF! ->  | E176: =(E120-E148)*#REF! ->  | F176: =(F120-F148)*#REF! ->  | G176: =(G120-G148)*#REF! ->  | H176: =(H120-H148)*#REF! ->  | I176: =(I120-I148)*#REF! ->  | J176: =(J120-J148)*#REF! ->  | K176: =(K120-K148)*#REF! ->  | L176: =(L120-L148)*#REF! ->  | M176: =(M120-M148)*#REF! ->  | N176: =(N120-N148)*#REF! ->  | O176: =(O120-O148)*#REF! ->  | P176: =(P120-P148)*#REF! ->  | Q176: =(Q120-Q148)*#REF! ->  | R176: =(R120-R148)*#REF! ->  | S176: =(S120-S148)*#REF! -> 

Sheet Equity weight 1
A1: These final worksheets provide optional extra material requiring a more advanced understanding of Excel functions and mathematics
A2: Equity weight calculator using "goalseek" This worksheet uses your inequality aversion value in the light green box E3 to compute the implied equity weight for the poorest fifth, using an iterative "goalseek" algorithm that minimises the difference in EDE between two distributions - one that gives a small gain to the poor and one that gives a corresponding gain to the rich.
A3: Your chosen inequality aversion parameter (=atkinson_e from sheet 5) | E3: =atkinson_e -> 11
A4: Quintile Group | B4: Distribution 1: Small gain to the poor | C4: U(h) and EDE | D4: Distribution 2: Small gain to the rich | E4: U(h) and EDE | F4: U(h) and EDE difference
A5: ='2. Health impact'!A11 -> Q1 - poorest | B5: ='2. Health impact'!B11 + B12 -> 64.71 | C5: =B5^(1-atkinson_e) -> 7.767584774e-19 | D5: ='2. Health impact'!B11 -> 64.7 | E5: =D5^(1-atkinson_e) -> 7.779598668e-19 | F5: =B5-D5 -> 0.01
A6: ='2. Health impact'!A12 -> Q2 | B6: ='2. Health impact'!B12 -> 71.87 | C6: =B6^(1-atkinson_e) -> 2.71971597e-19 | D6: ='2. Health impact'!B12 -> 71.87 | E6: =D6^(1-atkinson_e) -> 2.71971597e-19 | F6: =B6-D6 -> 0
A7: ='2. Health impact'!A13 -> Q3 | B7: ='2. Health impact'!B13 -> 75.43 | C7: =B7^(1-atkinson_e) -> 1.677099861e-19 | D7: ='2. Health impact'!B13 -> 75.43 | E7: =D7^(1-atkinson_e) -> 1.677099861e-19 | F7: 0
A8: ='2. Health impact'!A14 -> Q4 | B8: ='2. Health impact'!B14 -> 77.79 | C8: =B8^(1-atkinson_e) -> 1.232430067e-19 | D8: ='2. Health impact'!B14 -> 77.79 | E8: =D8^(1-atkinson_e) -> 1.232430067e-19 | F8: 0
A9: ='2. Health impact'!A15 -> Q5 - richest | B9: ='2. Health impact'!B15 -> 80.5 | C9: =B9^(1-atkinson_e) -> 8.750667784e-20 | D9: ='2. Health impact'!B15 +B13 -> 80.61129221 | E9: =D9^(1-atkinson_e) -> 8.6306036e-20 | F9: -0.1112922069
A10: Average and EDE | B10: =AVERAGE(B5:B9) -> 74.06 | C10: =AVERAGE(C5:C9)^(1/(1-atkinson_e)) -> 71.52351158 | D10: =AVERAGE(D5:D9) -> 74.08025844 | E10: =AVERAGE(E5:E9)^(1/(1-atkinson_e)) -> 71.52350783 | F10: =E10-C10 -> -3.74642768e-06
A11: Atkinson index | B11: =1-C10/B10 -> 0.03424910104
A12: Input size of small gain to the poor | B12: 0.01
A13: Goalseek estimated size of corresponding small gain to the rich | B13: 0.1112922069
A15: Implied equity weight to the poorest fifth | B15: =B13/B12 -> 11.12922069
A17: Command used to calculate the size of the corresponding small gain to the rich:
A18: Data, What If Analysis, Goal Seek, set F8 equal to 0 by changing B11
A21: Another version of this equity weight calculator is available in R code at the below website:
A22: https://github.com/miqdadasaria/social_welfare_functions/blob/master/relative_weights.R

Sheet Equity weight 2
A1: Equity weight calculator using calculus to compute the marginal EDE QALY value of health gains - observed narrow range of QALE from 64 to 80
A2: Enter an inequality aversion parameter in the blue box below to see how the marginal EDE QALY values and implied equity weights change
A3: Inequality aversion ε= | B3: 11 | C3: Comparator | D3: Standard EDE Calculation | F3: U(h) - assuming just five individuals | G3: U(h) * pop
A4: Quintile Group | B4: N | C4: hi | D4: hi^(1-ε)*N | E4: h^(1-e) | F4: h^(1-e)/(1-e)
A5: Q1 - poorest | B5: ='2. Health impact'!E11 -> 10000000 | C5: ='2. Health impact'!B11 -> 64.7 | D5: =B5*(C5^(1-$B$3)) -> 7.779598668e-12 | E5: =C5^(1-$B$3) -> 7.779598668e-19 | F5: =E5/(1-$B$3) -> -7.779598668e-20 | G5: =F5*$B$5 -> -7.779598668e-13
A6: Q2 | B6: ='2. Health impact'!E12 -> 10000000 | C6: ='2. Health impact'!B12 -> 71.87 | D6: =B6*(C6^(1-$B$3)) -> 2.71971597e-12 | E6: =C6^(1-$B$3) -> 2.71971597e-19 | F6: =E6/(1-$B$3) -> -2.71971597e-20 | G6: =F6*$B$5 -> -2.71971597e-13
A7: Q3 | B7: ='2. Health impact'!E13 -> 10000000 | C7: ='2. Health impact'!B13 -> 75.43 | D7: 1.677099861e-12 | E7: =C7^(1-$B$3) -> 1.677099861e-19 | F7: -1.677099861e-20 | G7: -1.677099861e-13
A8: Q4 | B8: ='2. Health impact'!E14 -> 10000000 | C8: ='2. Health impact'!B14 -> 77.79 | D8: 1.232430067e-12 | E8: =C8^(1-$B$3) -> 1.232430067e-19 | F8: -1.232430067e-20 | G8: -1.232430067e-13
A9: Q5- richest | B9: ='2. Health impact'!E15 -> 10000000 | C9: ='2. Health impact'!B15 -> 80.5 | D9: 8.750667784e-13 | E9: =C9^(1-$B$3) -> 8.750667784e-20 | F9: -8.750667784e-21 | G9: -8.750667784e-14
A10: Total | B10: =SUM(B5:B9) -> 50000000 | D10: =SUM(D5:D9) -> 1.428391134e-11 | F10: =SUM(F5:F9) -> -1.428391134e-19 | G10: =SUM(G5:G9) -> -1.428391134e-12
A11: Average | C11: =AVERAGE(C5:C9) -> 74.058 | D11: =D10/$B$10 -> 2.856782269e-19 | F11: =AVERAGE(F5:F9) -> -2.856782269e-20 | G11: =G10/B10 -> -2.856782269e-20
A12: EDE [bigger is better] | D12: =D11^(1/(1-$B$3)) -> 71.51749361 | F12: =((1-$B$3)*F11)^(1/(1-$B$3)) -> 71.51749361 | G12: =((1-$B$3)*G11)^(1/(1-$B$3)) -> 71.51749361
A13: A(ε) [bigger is worse] | D13: =1-(D12/C11) -> 0.03430428032 | F13: =1-F12/C11 -> 0.03430428032 | G13: =1-G12/C11 -> 0.03430428032
A14: Average W = AW (sum of utilities * 1/n) | F14: =F11 -> -2.856782269e-20 | G14: =G11 -> -2.856782269e-20
A15: Total W = TW (sum of utilities) | F15: =F10 -> -1.428391134e-19 | G15: =G10 -> -1.428391134e-12
D18: Marginal total welfare value of a QALY | E18: Marginal EDE QALY value
A19: ID | B19: h (= quality adjusted age) | C19: U(h) | D19: Formula: dTW/dh = h^-e | E19: Formula: (AW*(1-e)) ^(e/1-e) * h^-e | F19: Implied equity weight compared with "Q1 - Richest" reference h = 80
A20: 1 | B20: 64 | C20: =B20^(1-$B$3)/(1-$B$3) -> -8.67361738e-20 | D20: =B20^-$B$3 -> 1.355252716e-20 | E20: =($F$14*(1-$B$3))^($B$3/(1-$B$3))*B20^(-$B$3) -> 3.392777898 | F20: =E20/$E$36 -> 11.64153218 | G20: Q1 - Poorest
A21: 2 | B21: 65 | C21: -7.427906589e-20 | D21: 1.14275486e-20 | E21: 2.860804769 | F21: =E21/$E$36 -> 9.816189501
A22: 3 | B22: 66 | C22: -6.376181114e-20 | D22: 9.660880475e-21 | E22: 2.418532085 | F22: 8.298633138
A23: 4 | B23: 67 | C23: -5.485951616e-20 | D23: 8.187987487e-21 | E23: 2.049803897 | F23: 7.033427695
A24: 5 | B24: 68 | C24: -4.730541676e-20 | D24: 6.956678935e-21 | E24: 1.741554639 | F24: 5.975741703
A25: 6 | B25: 69 | C25: -4.087983108e-20 | D25: 5.924613201e-21 | E25: 1.48318439 | F25: 5.089203988
A26: 7 | B26: 70 | C26: -3.540133175e-20 | D26: 5.057333107e-21 | E26: 1.266067044 | F26: 4.34421606
A27: 8 | B27: 71 | C27: -3.071966765e-20 | D27: 4.326713753e-21 | E27: 1.083161733 | F27: 3.716618814
A28: 9 | B28: 72 | C28: -2.671007058e-20 | D28: 3.709732026e-21 | E28: 0.9287047855 | F28: 3.186635545
A29: 10 | B29: 73 | C29: -2.326866134e-20 | D29: 3.187487855e-21 | E29: 0.7979647058 | F29: 2.738031219
A30: 11 | B30: 74 | C30: -2.030873173e-20 | D30: 2.744423206e-21 | E30: 0.6870466512 | F30: 2.357441583
A31: 12 | B31: 75 | C31: -1.775772663e-20 | D31: 2.367696885e-21 | E31: 0.5927359206 | F31: 2.033836137
A32: 13 | B32: 76 | C32: -1.555478731e-20 | D32: 2.046682541e-21 | E32: 0.5123722838 | F32: 1.758086916
A33: 14 | B33: 77 | C33: -1.364874589e-20 | D33: 1.772564402e-21 | E33: 0.4437487751 | F33: 1.522621227
A34: 15 | B34: 78 | C34: -1.199648383e-20 | D34: 1.538010748e-21 | E34: 0.3850299515 | F34: 1.321141173
A35: 16 | B35: 79 | C35: -1.056158472e-20 | D35: 1.336909458e-21 | E35: 0.334685687 | F35: 1.14839648
A36: 17 | B36: 80 | C36: -9.313225746e-21 | D36: 1.164153218e-21 | E36: 0.2914374023 | F36: 1 | G36: Q5 - Richest
A37: 18 | B37: 81 | C37: -8.22526334e-21 | D37: 1.01546461e-21 | E37: 0.2542142764 | F37: 0.8722774579
A38: 19 | B38: 82 | C38: -7.275477068e-21 | D38: 8.87253301e-22 | E38: 0.2221174955 | F38: 0.7621447822
A39: 20 | B39: 83 | C39: -6.444942933e-21 | D39: 7.764991486e-22 | E39: 0.1943909884 | F39: 0.6670076897

Sheet Equity weight 3
A1: Calculus-based equity weight calculator with wide range of QALE from 0 to 125
A2: Enter an inequality aversion parameter in the blue box below to see how the marginal EDE QALY values and implied equity weights change
A3: Inequality aversion ε= | B3: 1.1 | C3: Comparator | D3: Standard EDE Calculation | F3: U(h) - assuming just five individuals | G3: U(h) * pop
A4: Quintile Group | B4: N | C4: hi | D4: hi^(1-ε)*N | E4: h^(1-e) | F4: h^(1-e)/(1-e)
A5: Q1 - poorest | B5: ='2. Health impact'!E11 -> 10000000 | C5: ='2. Health impact'!B11 -> 64.7 | D5: =B5*(C5^(1-$B$3)) -> 6590366.575 | E5: =C5^(1-$B$3) -> 0.6590366575 | F5: =E5/(1-$B$3) -> -6.590366575 | G5: =F5*$B$5 -> -65903665.75
A6: Q2 | B6: ='2. Health impact'!E12 -> 10000000 | C6: ='2. Health impact'!B12 -> 71.87 | D6: =B6*(C6^(1-$B$3)) -> 6521466.017 | E6: =C6^(1-$B$3) -> 0.6521466017 | F6: =E6/(1-$B$3) -> -6.521466017 | G6: =F6*$B$5 -> -65214660.17
A7: Q3 | B7: ='2. Health impact'!E13 -> 10000000 | C7: ='2. Health impact'!B13 -> 75.43 | D7: 6490013.336 | E7: =C7^(1-$B$3) -> 0.6490013336 | F7: -6.490013336 | G7: -64900133.36
A8: Q4 | B8: ='2. Health impact'!E14 -> 10000000 | C8: ='2. Health impact'!B14 -> 77.79 | D8: 6470049.791 | E8: =C8^(1-$B$3) -> 0.6470049791 | F8: -6.470049791 | G8: -64700497.91
A9: Q5 - richest | B9: ='2. Health impact'!E15 -> 10000000 | C9: ='2. Health impact'!B15 -> 80.5 | D9: 6447931.454 | E9: =C9^(1-$B$3) -> 0.6447931454 | F9: -6.447931454 | G9: -64479314.54
A10: Total | B10: =SUM(B5:B9) -> 50000000 | D10: =SUM(D5:D9) -> 32519827.17 | F10: =SUM(F5:F9) -> -32.51982717 | G10: =SUM(G5:G9) -> -325198271.7
A11: Average | C11: =AVERAGE(C5:C9) -> 74.058 | D11: =D10/$B$10 -> 0.6503965434 | F11: =AVERAGE(F5:F9) -> -6.503965434 | G11: =G10/B10 -> -6.503965434
A12: EDE [bigger is better] | D12: =D11^(1/(1-$B$3)) -> 73.82743073 | F12: =((1-$B$3)*F11)^(1/(1-$B$3)) -> 73.82743073 | G12: =((1-$B$3)*G11)^(1/(1-$B$3)) -> 73.82743073
A13: A(ε) [bigger is worse] | D13: =1-(D12/C11) -> 0.003113360777 | F13: =1-F12/C11 -> 0.003113360777 | G13: =1-G12/C11 -> 0.003113360777
A14: Average W = AW (sum of utilities * 1/n) | F14: =F11 -> -6.503965434 | G14: =G11 -> -6.503965434
A15: Total W = TW (sum of utilities) | F15: =F10 -> -32.51982717 | G15: =G10 -> -325198271.7
D18: Marginal total welfare value of a QALY | E18: Marginal EDE QALY value
B19: h (= quality adjusted age) | C19: U(h) | D19: Calculus formula: dTW/dh = h^-e | E19: Calculus formula: (AW*(1-e)) ^(e/1-e) * h^-e | F19: Implied equity weight compared with "Q1 - Richest" reference h = 80
B20: 0.5 | C20: =B20^(1-$B$3)/(1-$B$3) -> -10.71773463 | D20: =B20^-$B$3 -> 2.143546925 | E20: =($F$14*(1-$B$3))^($B$3/(1-$B$3))*B20^(-$B$3) -> 243.3170405 | F20: =E20/$E$100 -> 265.7859264
B21: 1 | C21: =B21^(1-$B$3)/(1-$B$3) -> -10 | D21: =B21^-$B$3 -> 1 | E21: =($F$14*(1-$B$3))^($B$3/(1-$B$3))*B21^(-$B$3) -> 113.5114131 | F21: =E21/$E$100 -> 123.993519
B22: 2 | C22: -9.330329915 | D22: 0.4665164958 | E22: 52.95494667 | F22: 57.84502198
B23: 3 | C23: -8.959584598 | D23: 0.2986528199 | E23: 33.90050362 | F23: 37.03101411
B24: 4 | C24: -8.705505633 | D24: 0.2176376408 | E24: 24.70435616 | F24: 26.98565695
B25: 5 | C25: -8.513399225 | D25: 0.1702679845 | E25: 19.32735953 | F25: 21.11212657
B26: 6 | C26: -8.359588021 | D26: 0.139326467 | E26: 15.81514415 | F26: 17.27557894
B27: 7 | C27: -8.23171254 | D27: 0.1175958934 | E27: 13.34847604 | F27: 14.58112865
B28: 8 | C28: -8.122523964 | D28: 0.1015315495 | E28: 11.52498966 | F28: 12.58925412
B29: 9 | C29: -8.027415618 | D29: 0.08919350686 | E29: 10.124481 | F29: 11.05941679
B30: 10 | C30: -7.943282347 | D30: 0.07943282347 | E30: 9.01653204 | F30: 9.849155307
B31: 11 | C31: -7.867934422 | D31: 0.07152667656 | E31: 8.119094132 | F31: 8.86884433
B32: 12 | C32: -7.799771419 | D32: 0.06499809516 | E32: 7.378025631 | F32: 8.059342547
B33: 13 | C33: -7.737589131 | D33: 0.05951991639 | E33: 6.756189817 | F33: 7.380083884
B34: 14 | C34: -7.680459377 | D34: 0.05486042412 | E34: 6.227284265 | F34: 6.802337041
B35: 15 | C35: -7.627652058 | D35: 0.05085101372 | E35: 5.772170425 | F35: 6.305196136
B36: 16 | C36: -7.578582833 | D36: 0.0473661427 | E36: 5.376597792 | F36: 5.873094715
B37: 17 | C37: -7.532776949 | D37: 0.04431045264 | E37: 5.029742095 | F37: 5.494208952
B38: 18 | C38: -7.489843608 | D38: 0.04161024227 | E38: 4.723237399 | F38: 5.159400365
B39: 19 | C39: -7.449457382 | D39: 0.03920767043 | E39: 4.450518075 | F39: 4.861497029
B40: 20 | C40: -7.411344491 | D40: 0.03705672246 | E40: 4.206360931 | F40: 4.59479342
B41: 21 | C41: -7.375272489 | D41: 0.03512034519 | E41: 3.986560011 | F41: 4.354695188
B42: 22 | C42: -7.341042391 | D42: 0.0333683745 | E42: 3.787691343 | F42: 4.137462178
B43: 23 | C43: -7.308482584 | D43: 0.03177601124 | E43: 3.606939938 | F43: 3.940019453
B44: 24 | C44: -7.27744406 | D44: 0.03032268359 | E44: 3.441970663 | F44: 3.759816243
B45: 25 | C45: -7.247796637 | D45: 0.02899118655 | E45: 3.290830553 | F45: 3.59471924
B46: 26 | C46: -7.219425934 | D46: 0.02776702282 | E46: 3.151873998 | F46: 3.442930872
B47: 27 | C47: -7.192230933 | D47: 0.02663789235 | E47: 3.023704802 | F47: 3.302926011
B48: 28 | C48: -7.166121989 | D48: 0.02559329282 | E48: 2.905130834 | F48: 3.173402439
B49: 29 | C49: -7.141019191 | D49: 0.02462420411 | E49: 2.795128205 | F49: 3.05324172
B50: 30 | C50: -7.116851018 | D50: 0.02372283673 | E50: 2.69281272 | F50: 2.941478006
B51: 31 | C51: -7.093553207 | D51: 0.0228824297 | E51: 2.597416931 | F51: 2.837272982
B52: 32 | C52: -7.071067812 | D52: 0.02209708691 | E52: 2.508271561 | F52: 2.739895566
B53: 33 | C53: -7.049342407 | D53: 0.02136164366 | E53: 2.424790358 | F53: 2.648705369
B54: 34 | C54: -7.028329412 | D54: 0.02067155709 | E54: 2.346457657 | F54: 2.563139107
B55: 35 | C55: -7.007985516 | D55: 0.02002281576 | E55: 2.272818111 | F55: 2.482699386
B56: 36 | C56: -6.988271188 | D56: 0.01941186441 | E56: 2.20346816 | F56: 2.406945379
B57: 37 | C57: -6.969150248 | D57: 0.01883554121 | E57: 2.1380489 | F57: 2.335485037
B58: 38 | C58: -6.950589506 | D58: 0.01829102502 | E58: 2.076240097 | F58: 2.267968558
B59: 39 | C59: -6.93255844 | D59: 0.01777579087 | E59: 2.017755141 | F59: 2.204082863
B60: 40 | C60: -6.915028922 | D60: 0.0172875723 | E60: 1.962336761 | F60: 2.143546925
B61: 41 | C61: -6.897974973 | D61: 0.0168243292 | E61: 1.909753382 | F61: 2.086107783
B62: 42 | C62: -6.881372554 | D62: 0.01638422037 | E62: 1.859796006 | F62: 2.031537139
B63: 43 | C63: -6.865199378 | D63: 0.01596557995 | E63: 1.812275541 | F63: 1.979628441
B64: 44 | C64: -6.849434743 | D64: 0.01556689714 | E64: 1.767020492 | F64: 1.930194357
B65: 45 | C65: -6.83405939 | D65: 0.01518679864 | E65: 1.723874975 | F65: 1.883064606
B66: 46 | C66: -6.819055369 | D66: 0.01482403341 | E66: 1.68269698 | F66: 1.838084068
B67: 47 | C67: -6.804405927 | D67: 0.01447745942 | E67: 1.643356877 | F67: 1.79511114
B68: 48 | C68: -6.790095402 | D68: 0.01414603209 | E68: 1.605736092 | F68: 1.754016299
B69: 49 | C69: -6.776109134 | D69: 0.01382879415 | E69: 1.569725966 | F69: 1.71468085
B70: 50 | C70: -6.762433378 | D70: 0.01352486676 | E70: 1.535226738 | F70: 1.676995823
B71: 51 | C71: -6.749055234 | D71: 0.01323344163 | E71: 1.50214666 | F71: 1.640860997
B72: 52 | C72: -6.735962576 | D72: 0.01295377419 | E72: 1.470401213 | F72: 1.606184046
B73: 53 | C73: -6.723143996 | D73: 0.01268517735 | E73: 1.439912407 | F73: 1.572879779
B74: 54 | C74: -6.710588743 | D74: 0.01242701619 | E74: 1.410608169 | F74: 1.540869468
B75: 55 | C75: -6.698286681 | D75: 0.01217870306 | E75: 1.382421794 | F75: 1.510080249
B76: 56 | C76: -6.686228237 | D76: 0.01193969328 | E76: 1.355291456 | F76: 1.480444586
B77: 57 | C77: -6.674404362 | D77: 0.01170948134 | E77: 1.329159773 | F77: 1.451899797
B78: 58 | C78: -6.662806498 | D78: 0.01148759741 | E78: 1.303973415 | F78: 1.424387628
B79: 59 | C79: -6.651426538 | D79: 0.0112736043 | E79: 1.279682755 | F79: 1.397853869
B80: 60 | C80: -6.640256796 | D80: 0.01106709466 | E80: 1.256241554 | F80: 1.372248012
B81: 61 | C81: -6.629289981 | D81: 0.01086768849 | E81: 1.233606678 | F81: 1.34752294
B82: 62 | C82: -6.618519169 | D82: 0.01067503092 | E82: 1.211737845 | F82: 1.323634649
B83: 63 | C83: -6.60793778 | D83: 0.01048879013 | E83: 1.190597389 | F83: 1.300541998
B84: 64 | C84: -6.597539554 | D84: 0.01030865555 | E84: 1.170150059 | F84: 1.278206478
B85: 65 | C85: =B85^(1-$B$3)/(1-$B$3) -> -6.587318531 | D85: =B85^-$B$3 -> 0.0101343362 | E85: =($F$14*(1-$B$3))^($B$3/(1-$B$3))*B85^(-$B$3) -> 1.150362823 | F85: =E85/$E$100 -> 1.256592008
B86: 66 | C86: -6.577269034 | D86: 0.009965559143 | E86: 1.131204701 | F86: 1.235664747
B87: 67 | C87: -6.567385651 | D87: 0.009802068136 | E87: 1.112646605 | F87: 1.215392922
B88: 68 | C88: -6.557663216 | D88: 0.009643622377 | E88: 1.094661203 | F88: 1.195746674
B89: 69 | C89: -6.5480968 | D89: 0.009489995362 | E89: 1.077222784 | F89: 1.17669792
B90: 70 | C90: -6.538681691 | D90: 0.009340973844 | E90: 1.060307141 | F90: 1.158220218
B91: 71 | C91: -6.529413384 | D91: 0.009196356879 | E91: 1.043891465 | F91: 1.140288651
B92: 72 | C92: -6.520287572 | D92: 0.009055954961 | E92: 1.027954245 | F92: 1.122879724
B93: 73 | C93: -6.511300129 | D93: 0.008919589218 | E93: 1.012475176 | F93: 1.105971255
B94: 74 | C94: -6.502447105 | D94: 0.008787090682 | E94: 0.9974350804 | F94: 1.089542295
B95: 75 | C95: -6.493724712 | D95: 0.008658299616 | E95: 0.9828158245 | F95: 1.073573038
B96: 76 | C96: -6.48512932 | D96: 0.008533064895 | E96: 0.9686002543 | F96: 1.058044744
B97: 77 | C97: -6.476657444 | D97: 0.008411243434 | E97: 0.9547721282 | F97: 1.042939673
B98: 78 | C98: -6.468305741 | D98: 0.008292699667 | E98: 0.9413160577 | F98: 1.028241014
B99: 79 | C99: -6.460070995 | D99: 0.008177305058 | E99: 0.9282174525 | F99: 1.01393283
B100: 80 | C100: -6.451950121 | D100: 0.008064937652 | E100: 0.9154624695 | F100: 1
B101: 81 | C101: -6.44394015 | D101: 0.007955481666 | E101: 0.9030379659 | F101: 0.9864281672
B102: 82 | C102: -6.436038224 | D102: 0.007848827103 | E102: 0.8909314557 | F102: 0.9732036925
B103: 83 | C103: -6.428241597 | D103: 0.007744869394 | E103: 0.8791310692 | F103: 0.9603136103
B104: 84 | C104: -6.42054762 | D104: 0.007643509071 | E104: 0.8676255158 | F104: 0.9477455873
B105: 85 | C105: -6.412953744 | D105: 0.007544651464 | E105: 0.8564040491 | F105: 0.9354878847
B106: 86 | C106: -6.405457513 | D106: 0.00744820641 | E106: 0.8454564347 | F106: 0.9235293231
B107: 87 | C107: -6.398056556 | D107: 0.007354087995 | E107: 0.8347729205 | F107: 0.9118592496
B108: 88 | C108: -6.390748589 | D108: 0.007262214305 | E108: 0.8243442081 | F108: 0.9004675075
B109: 89 | C109: -6.383531405 | D109: 0.007172507197 | E109: 0.8141614274 | F109: 0.8893444074
B110: 90 | C110: -6.376402877 | D110: 0.007084892085 | E110: 0.8042161123 | F110: 0.8784807014
B111: 91 | C111: -6.369360948 | D111: 0.006999297745 | E111: 0.7945001777 | F111: 0.8678675579
B112: 92 | C112: -6.362403631 | D112: 0.00691565612 | E112: 0.7850058988 | F112: 0.8574965386
B113: 93 | C113: -6.355529006 | D113: 0.006833902157 | E113: 0.7757258909 | F113: 0.847359577
B114: 94 | C114: -6.348735218 | D114: 0.006753973636 | E114: 0.7666530915 | F114: 0.8374489584
B115: 95 | C115: -6.34202047 | D115: 0.006675811021 | E115: 0.7577807427 | F115: 0.8277573007
B116: 96 | C116: -6.335383026 | D116: 0.006599357319 | E116: 0.7491023749 | F116: 0.8182775371
B117: 97 | C117: -6.328821204 | D117: 0.006524557942 | E117: 0.740611792 | F117: 0.8090028992
B118: 98 | C118: -6.322333376 | D118: 0.006451360588 | E118: 0.7323030568 | F118: 0.7999269017
B119: 99 | C119: -6.315917966 | D119: 0.006379715117 | E119: 0.7241704781 | F119: 0.7910433276
B120: 100 | C120: -6.309573445 | D120: 0.006309573445 | E120: 0.7162085978 | F120: 0.7823462148
B121: 101 | C121: -6.303298333 | D121: 0.006240889439 | E121: 0.7084121792 | F121: 0.7738298432
B122: 102 | C122: =B122^(1-$B$3)/(1-$B$3) -> -6.297091195 | D122: =B122^-$B$3 -> 0.006173618818 | E122: =($F$14*(1-$B$3))^($B$3/(1-$B$3))*B122^(-$B$3) -> 0.7007761961 | F122: 0.7654887223
B123: 103 | C123: -6.290950638 | D123: 0.006107719066 | E123: 0.6932958221 | F123: 0.7573175801
B124: 104 | C124: -6.284875313 | D124: 0.00604314934 | E124: 0.6859664212 | F124: 0.7493113525
B125: 105 | C125: -6.278863909 | D125: 0.00597987039 | E125: 0.6787835382 | F125: 0.7414651728
B126: 106 | C126: -6.272915155 | D126: 0.005917844486 | E126: 0.6717428901 | F126: 0.7337743627
B127: 107 | C127: -6.267027815 | D127: 0.005857035341 | E127: 0.6648403582 | F127: 0.7262344229
B128: 108 | C128: -6.26120069 | D128: 0.005797408047 | E128: 0.6580719797 | F128: 0.7188410248
B129: 109 | C129: -6.255432616 | D129: 0.005738929006 | E129: 0.6514339412 | F129: 0.7115900027
B130: 110 | C130: -6.24972246 | D130: 0.005681565873 | E130: 0.6449225709 | F130: 0.704477346
B131: 111 | C131: -6.244069123 | D131: 0.005625287498 | E131: 0.638534333 | F131: 0.6974991923
B132: 112 | C132: -6.238471534 | D132: 0.005570063869 | E132: 0.6322658209 | F132: 0.6906518202
B133: 113 | C133: -6.232928653 | D133: 0.005515866065 | E133: 0.6261137515 | F133: 0.6839316437
B134: 114 | C134: -6.227439469 | D134: 0.005462666201 | E134: 0.6200749598 | F134: 0.6773352054
B135: 115 | C135: -6.222002997 | D135: 0.005410437389 | E135: 0.6141463935 | F135: 0.6708591712
B136: 116 | C136: -6.216618279 | D136: 0.005359153689 | E136: 0.6083251083 | F136: 0.6645003248
B137: 117 | C137: -6.211284383 | D137: 0.005308790071 | E137: 0.6026082628 | F137: 0.6582555625
B138: 118 | C138: -6.2060004 | D138: 0.005259322373 | E138: 0.5969931146 | F138: 0.6521218886
B139: 119 | C139: -6.200765447 | D139: 0.005210727267 | E139: 0.5914770154 | F139: 0.6460964104
B140: 120 | C140: -6.195578663 | D140: 0.005162982219 | E140: 0.5860574075 | F140: 0.6401763339
B141: 121 | C141: =B141^(1-$B$3)/(1-$B$3) -> -6.190439207 | D141: =B141^-$B$3 -> 0.00511606546 | E141: =($F$14*(1-$B$3))^($B$3/(1-$B$3))*B141^(-$B$3) -> 0.5807318199 | F141: 0.6343589599
B142: 122 | C142: -6.185346263 | D142: 0.005069955953 | E142: 0.5754978646 | F142: 0.6286416798
B143: 123 | C143: -6.180299033 | D143: 0.00502463336 | E143: 0.570353233 | F143: 0.623021972
B144: 124 | C144: -6.17529674 | D144: 0.004980078016 | E144: 0.565295693 | F144: 0.6174973981
B145: 125 | C145: -6.170338627 | D145: 0.004936270902 | E145: 0.5603230855 | F145: 0.6120655999

Sheet Lookup table
A1: Lookup table between equity questionnaire choice, Atkinson inequality index and implied equity weight from Robson et al. (2016). You may notice that the Robson implied equity weights are lower than the ones calculated in this spreadsheet. This is because the Robson values were calculatated using the current baseline health distribution in England and Wales, whereas this spreadsheet calculates implied equity weights using the comparator Programme A distribution which is more unequal than the current England and Wales distribution. The implied equity weights are not fixed but vary depending on the degree of inequality in the reference distribution.
A2: Rank | B2: Tradeoff point: health gains to the poor in Programme B | C2: Response code | D2: Description of choice pattern | E2: Category | F2: Atkinson's, ε | G2: Implied equity weight to the poorest fifth | H2: Kolm's, α | I2: Kolm Implied Weight
A3: 1 | B3: 8.5 | C3: AAAAAAA | D3: A in the 1st choice | E3: Pro-Rich 1 | F3: -2.075 | G3: 0.69 | H3: -0.028 | I3: 0.71
A4: 2 | B4: 8 | C4: =AAAAAA | D4: Equal in the 1st choice | E4: Pro-Rich 2 | F4: -1.419 | G4: 0.78 | H4: -0.019 | I4: 0.8
A5: 3 | B5: 7.5 | C5: BAAAAAA | D5: Switch to A in the 2nd choice | E5: Pro-Rich 3 | F5: -0.731 | G5: 0.88 | H5: -0.01 | I5: 0.89
A6: 4 | B6: 7 | C6: B=AAAAA | D6: Equal in the 2nd choice | E6: Health Maximiser | F6: 0 | G6: 1 | H6: 0 | I6: 1
A7: 5 | B7: 6.5 | C7: BBAAAAA | D7: Switch to A in the 3rd choice | E7: Weighted Prioritarian 1 | F7: 0.792 | G7: 1.15 | H7: 0.011 | I7: 1.14
A8: 6 | B8: 6 | C8: BB=AAAA | D8: Equal in the 3rd choice | E8: Weighted Prioritarian 2 | F8: 1.671 | G8: 1.34 | H8: 0.023 | I8: 1.32
A9: 7 | B9: 5.5 | C9: BBBAAAA | D9: Switch to A in the 4th choice | E9: Weighted Prioritarian 3 | F9: 2.673 | G9: 1.6 | H9: 0.037 | I9: 1.56
A10: 8 | B10: 5 | C10: BBB=AAA | D10: Equal in the 4th choice | E10: Weighted Prioritarian 4 | F10: 3.862 | G10: 1.98 | H10: 0.053 | I10: 1.89
A11: 9 | B11: 4.5 | C11: BBBBAAA | D11: Switch to A in the 5th choice | E11: Weighted Prioritarian 5 | F11: 5.358 | G11: 2.58 | H11: 0.074 | I11: 2.43
A12: 10 | B12: 4 | C12: BBBB=AA | D12: Equal in the 5th choice | E12: Weighted Prioritarian 6 | F12: 7.43 | G12: 3.72 | H12: 0.103 | I12: 3.44
A13: 11 | B13: 3.5 | C13: BBBBBAA | D13: Switch to A in the 6th choice | E13: Weighted Prioritarian 7 | F13: 10.946 | G13: 6.95 | H13: 0.152 | I13: 6.2
A14: 12 | B14: 3 | C14: BBBBB=A | D14: Equal in the 6th choice | E14: Maximin | F14: ∞ | G14: ∞ | H14: ∞ | I14: ∞
A15: 13 | B15: 2.5 | C15: BBBBBBA | D15: Switch to A in the 7th choice | E15: Egalitarian 1 | F15: NA | G15: NA | H15: NA | I15: NA
A16: 14 | B16: 2 | C16: BBBBBB= | D16: Equal in the 7th choice | E16: Egalitarian 2 | F16: NA | G16: NA | H16: NA | I16: NA
A17: 15 | B17: 1.5 | C17: BBBBBBB | D17: Still B in the 7th choice | E17: Egalitarian 3 | F17: NA | G17: NA | H17: NA | I17: NA
